Workbook

Sheet instructions
M1: Green Infrastructure Grant Program Application Instructions
B2: Grant Program Overview
B4: The San Francisco Public Utilities Commission’s (SFPUC) Green Infrastructure Grant Program (“Grant Program”) is designed to encourage San Francisco property owners to design, build, and maintain performance-based green stormwater infrastructure. The goal of this program is to reduce the rate and volume of stormwater runoff cost-effectively by funding green infrastructure projects that meet the SFPUC’s minimum performance and co-benefit criteria. Eligible properties must be serviced by an SFPUC-owned and operated sewer system and demonstrate an ability to manage stormwater runoff from a minimum impervious area of 0.5 acres. Grant funds will be awarded to cover all green infrastructure-related costs for projects that meet minimum stormwater performance requirements and demonstrate co-benefits.
B5: Visit the Green Infrastructure Grant Program Website (https://sfpuc.gov/programs/grants) for additional information and grant resources.
B7: Please contact the SFPUC GI Grant Program with questions at gigrants@sfwater.org
D9: Please refer to the following documents before completing the application:
G10: > | H10: Program Guidebook
G11: > | H11: Application Solicitation
B13: Application Instructions
B15: You must ENABLE MACROS for this application to function properly. Please enable macros
B16: in the Message Bar or when the Security Warning appears. | V16: Click here for macro info.
B18: Click through each tab and complete each component of the grant application. Note that your project's stormwater performance and co-benefits will determine if your project meets the eligibility requirements described in the grant guidebook.
B19: 1 | C19: PROJECT APPLICATION FORM | U19: >> | V19: go to application form
D20: This is where you will enter the contact information and details for your proposed concept. You should refer to the grant website to determine the watershed of your project. Here you will also provide a brief high-level description of your proposed project.
B21: 2 | C21: PROJECT AND EXPERIENCE NARRATIVES | U21: >> | V21: go to narratives
D22: This is where you will provide your project narrative, grant team experience, and communications plan narrative, up to 500 words each. You should refer to the grant requirements for the details you should incorporate into your narratives.
B23: 3 | C23: PROPOSED BUDGET | U23: >> | V23: go to budget template
D24: This is where you will enter the concept level cost estimate for your project. This includes two major categories: Administration/Design and Construction. The construction portion of your proposed budget should be broken out in the following categories: Site Demolition; Structural System Components; Conveyance; Media, Landscaping, Surface, Restoration; Site Control; and Miscellaneous. You can add or remove line items under each category with the plus (+) and minus (-) buttons. Your budget can include up to 10% for design contingency, 10% for general contingency, and 10% for construction contingency. If you think your design warrants additional contingency you must provide justification.
B25: 4 | C25: STORMWATER PERFORMANCE CALCULATOR | U25: >> | V25: go to performance tab
D26: This is where you will enter the details of your proposed green infrastructure. The expected performance of each facility type will be calculated based on the sizing you enter. To be eligible for grant funding your proposed concept must utilize an approved green infrastructure practice, capture runoff from at least 0.5 acres of impervious area, and capture the 90th percentile storm (i.e., capture 85% of annual runoff).
B27: 5 | C27: CO-BENEFITS FORM | U27: >> | V27: go to co-benefits form
D28: This is where you will select which co-benefits your project will provide. To be eligible for grant funding your proposed concept must provide at least two co-benefits. For each co-benefit selected you must explain how your project will provide these benefits. Please refer to the current Application Requirements on the program website for up to date information on co-benefit scoring and evaluation criteria.
B29: 6 | C29: PROJECT SCHEDULE | U29: >> | V29: go to schedule template
D30: This is where you will enter the expected date of completion for major project milestones. Hovering over the date entry boxes will provide guidance on how much time you should budget for different milestones. You can add custom milestones to this schedule template if needed using the plus (+) button. This tab will provide a small schedule chart based on the dates you enter.
B31: 7 | C31: PROJECT MAINTENANCE PLAN | U31: >> | V31: go to O&M template
D32: This is where you will describe the maintenance plan for the project and list each maintenance activity to be performed at your completed project site under the 20-year maintenance agreement and the proposed schedule for these activities. You should refer to the grant guidebook and the SMR BMP Fact Sheet for recommendations on maintenance activities and frequencies. You can add or remove additional lines to the maintenance activity table as needed with the plus (+) and minus (-) buttons.
B33: Additional deliverables required for the grant application include:
B34: • | C34: concept design
B35: • | C35: site photos
B36: • | C36: property owner letter of support
AE37: 06/26/2024

Sheet 1 application
L1: Green Infrastructure Grant Program Project Application Form
B2: Applicant Information
B4: Please refer to the GI Grant Application Requirements for evaluation and scoring criteria
B6: Project Name | O6: Date | Y6: Save and Print Application | Z6: Examples
B7: Applicant Name
B8: Applicant Organization
B10: Project Address
B11: Property Number (Block/Lot) | M11: =IF(L11="","Visit https://sfplanninggis.org/pim/","") -> Visit https://sfplanninggis.org/pim/
B13: Existing Site Conditions
B15: Watershed | O15: View GI Grant Web Map
B16: Minor Watershed
B18: Total Project Area (ft2)
B19: Existing Impervious Area (ft2)
B21: Proposed Project
B23: Brief Project Description | V23: ="(" & IF(LEN(TRIM(B24))=0,0,LEN(TRIM(B24))-LEN(SUBSTITUTE(B24," ",""))+1) & " of 100 words)" -> (0 of 100 words)
B26: Project Team | L26: Name | M26: Contact Information
B27: Property Owner
B28: Project Manager
B29: Design Professional(s)
B30: Community Team Members (optional)
B31: Property Steward (optional)
B35: If awarded, which member of the Project Team will directly receive grant funds?
B37: =IF(B36<>"","Note: If "& B36&" is not the property owner then the property owner must provide a Letter of Support.","") -> 
B38: Provide the following attachments in addition to this application (refer to the grant guidelines for additional information):
D40: Concept Design
D41: Site Photos
D42: Property Owner Letter of Support (if Grantee is not the property owner)
B43: Note: The application file size must be condensed to less than 10 MB and submitted to
B44: gigrants@sfwater.org | I44: by the application deadline found in the | N44: grant requirements.
L45: Grant Request Amount | N45: =IF('3 budget'!I1,'3 budget'!G76,'3 budget'!E76) -> 0

Sheet 2 narratives
B1: Green Infrastructure Grant Program Project and Grant Team Experience Narratives
B2: Project Vision and Narrative
B4: Please provide a description of the proposed project including description of existing conditions, project vision, and proposed concept. The project vision should state the goals of your project, recognize the role of your stakeholders, and describe how the proposed stormwater features will unlock social and environmental co-benefits over the life-span of the project. Describe your project concept and overall programming and site improvements. Refer to the Project Visioning section of the Grant Guidebook for direction on describing your project’s vision.
B5: ="(" & IF(LEN(TRIM(B6))=0,0,LEN(TRIM(B6))-LEN(SUBSTITUTE(B6," ",""))+1) & " of 500 words)" -> (0 of 500 words)
B8: Grant Team Experience
B10: Please describe the experience of the grant team including the design professional(s). Describe previous experience delivering green infrastructure projects of similar scale and complexity, as specified in the grant guidebook.
B11: ="(" & IF(LEN(TRIM(B12))=0,0,LEN(TRIM(B12))-LEN(SUBSTITUTE(B12," ",""))+1) & " of 500 words)" -> (0 of 500 words)
B14: Communications Plan
B16: Please describe the proposed Communications Plan to be implemented if awarded a grant. Identify key stakeholders (including the property owner), propose a schedule with milestones for stakeholder engagement (including meetings or activities prior to award), and describe a process for communicating with stakeholders throughout the project.
B17: ="(" & IF(LEN(TRIM(B18))=0,0,LEN(TRIM(B18))-LEN(SUBSTITUTE(B18," ",""))+1) & " of 500 words)" -> (0 of 500 words)

Sheet 3 budget
A1: Green Infrastructure Grant Program Budget Template | I1: FALSE
A2: Will this project leverage additional funding sources?
A3: Project Expense | B3: Quantity | C3: Unit | D3: Unit Cost | E3: Total Cost | G3: SFPUC Grant Request | H3: Grantee Committed Cost | I3: Add Row
A4: Administration and Design Direct Expenses (30% of Total Project Budget)
A5: Project Staff Salaries and Wages
A6: Project Manager
A7: Staff
E8: =SUM(INDIRECT("E"&ROW(E5)+1&":E"&ROW()-1)) -> 0 | G8: =SUM(INDIRECT("G"&ROW(G5)+1&":G"&ROW()-1)) -> 0 | H8: =SUM(INDIRECT("H"&ROW(H5)+1&":H"&ROW()-1)) -> 0
A9: Engineering/ Design
A10: Design
A11: Property Boundary Survey
A12: Geotechnical Investigation
A13: As-Built Survey/ Record Drawings
A14: Permitting
E15: =SUM(INDIRECT("E"&ROW(E9)+1&":E"&ROW()-1)) -> 0 | G15: =SUM(INDIRECT("G"&ROW(G9)+1&":G"&ROW()-1)) -> 0 | H15: =SUM(INDIRECT("H"&ROW(H9)+1&":H"&ROW()-1)) -> 0
A17: Subtotal - Administration and Design | E17: =E15+E8 -> 0 | G17: =G15+G8 -> 0 | H17: =H15+H8 -> 0 | I17: =IF($I$1,IF(E17=G17+H17,"✓","ø Total Cost does not equal SFPUC Grant Request + Grantee Committed Cost"),"") -> 
A19: Construction Direct Expenses
A20: Site Demolition
A21: A/C Demo and Removal
A22: Clearing and Grubbing
A23: Soil Excavation
A24: Existing Infrastructure Removal
E25: =SUM(INDIRECT("E"&ROW(E20)+1&":E"&ROW()-1)) -> 0 | G25: =SUM(INDIRECT("G"&ROW(G20)+1&":G"&ROW()-1)) -> 0 | H25: =SUM(INDIRECT("H"&ROW(H20)+1&":H"&ROW()-1)) -> 0
A26: Structural System Components
A27: Inlets
A28: Curbs and Sidewalls
A29: Cistern Pad and Seismic Restraints
A30: Cistern with Fittings
A31: Cistern Pump
A32: Cistern Pre-Treatment (i.e. First Flush Diverter, Gutter Screen)
A33: Cistern WQ Treatment (i.e. Filters, UV Irradiator)
E34: =SUM(INDIRECT("E"&ROW(E26)+1&":E"&ROW()-1)) -> 0 | G34: =SUM(INDIRECT("G"&ROW(G26)+1&":G"&ROW()-1)) -> 0 | H34: =SUM(INDIRECT("H"&ROW(H26)+1&":H"&ROW()-1)) -> 0
A35: Conveyance
A36: Solid Pipe with Fittings
A37: Underdrain Perforated Pipe with Fittings
A38: Cleanout
A39: Outlet Structure with Screen/Grate
A40: Manhole (Larger Projects)
E41: =SUM(INDIRECT("E"&ROW(E35)+1&":E"&ROW()-1)) -> 0 | G41: =SUM(INDIRECT("G"&ROW(G35)+1&":G"&ROW()-1)) -> 0 | H41: =SUM(INDIRECT("H"&ROW(H35)+1&":H"&ROW()-1)) -> 0
A42: Media, Landscaping, Surfacing, Restoration
A43: Clean-Washed Aggregate
A44: Geotextile Fabric/Choking Course
A45: Permeable Pavement
A46: Soil Media
A47: Mulch
A48: Seeding and Planting
E49: =SUM(INDIRECT("E"&ROW(E42)+1&":E"&ROW()-1)) -> 0 | G49: =SUM(INDIRECT("G"&ROW(G42)+1&":G"&ROW()-1)) -> 0 | H49: =SUM(INDIRECT("H"&ROW(H42)+1&":H"&ROW()-1)) -> 0
A50: Site Control
A51: Silt Fence/ Silt Sock
A52: Inlet Protection
A53: Tree Protection
A54: Construction Fencing
A55: Traffic Control (Larger Projects)
E56: =SUM(INDIRECT("E"&ROW(E50)+1&":E"&ROW()-1)) -> 0 | G56: =SUM(INDIRECT("G"&ROW(G50)+1&":G"&ROW()-1)) -> 0 | H56: =SUM(INDIRECT("H"&ROW(H50)+1&":H"&ROW()-1)) -> 0
A57: Miscellaneous Construction
E61: =SUM(INDIRECT("E"&ROW(E57)+1&":E"&ROW()-1)) -> 0 | G61: =SUM(INDIRECT("G"&ROW(G57)+1&":G"&ROW()-1)) -> 0 | H61: =SUM(INDIRECT("H"&ROW(H57)+1&":H"&ROW()-1)) -> 0
A63: Subtotal - Construction | E63: =E25+E34+E41+E49+E56+E61 -> 0 | G63: =G25+G34+G41+G49+G56+G61 -> 0 | H63: =H25+H34+H41+H49+H56+H61 -> 0 | I63: =IF($I$1,IF(E63=G63+H63,"✓","ø Total Cost does not equal SFPUC Grant Request + Grantee Committed Cost"),"") -> 
A66: DIRECT CONSTRUCTION COST | E66: =E63 -> 0 | G66: =G63 -> 0 | H66: =H63 -> 0
A67: General Conditions and Contractor Overhead | B67: 0.15 | E67: =$B$67*$E$66 -> 0
A69: BASE CONSTRUCTION COST | E69: =SUM(E66:E67) -> 0 | G69: =SUM(G66:G67) -> 0 | H69: =SUM(H66:H67) -> 0 | I69: =IF($I$1,IF(E69=G69+H69,"✓","ø Total Cost does not equal SFPUC Grant Request + Grantee Committed Cost"),"") -> 
A70: Construction Contingency | B70: 0.1 | E70: =ROUND(E69*B70,0) -> 0
A72: TOTAL CONSTRUCTION COST | E72: =E69+E70 -> 0 | G72: =G69+G70 -> 0 | H72: =H69+H70 -> 0
A74: TOTAL DESIGN AND ADMINISTRATION COST | B74: =IFERROR(IF($I$1,G74/G76,E74/E76),"") ->  | E74: =E17 -> 0 | G74: =G17 -> 0 | H74: =H17 -> 0
A76: TOTAL PROJECT COST | E76: =E72+E74 -> 0 | G76: =G72+G74 -> 0 | H76: =H72+H74 -> 0 | I76: =IF(AND($I$1,E76<>G76+H76),"ø Total Cost does not equal SFPUC Grant Request + Grantee Committed Cost", IF(OR(AND($I$1,G76>2500000),AND(NOT($I$1),E76>2500000)),"ø Grant request exceeds $2.5M", IF('4 performance'!AM28>0,IF(OR(AND($I$1,G76/'4 performance'!AM28*43560>1035000),AND(NOT($I$1),E76/'4 performance'!AM28*43560>1035000)),"ø Grant request exceeds $1.035M/acre managed","✓"),""))) -> 
A78: =IF(AND(B74<>"",B74>0.3),"Soft costs (costs for design and administration) exceed 30% of total project costs. ","")& IF(OR(AND(NOT($I$1),E76<>"",E76>2500000),AND($I$1,G76<>"",G76>2500000)),"Grant request exceeds $2.5M","")& IF('4 performance'!AM28>0, IF(OR(AND(NOT($I$1),E76/'4 performance'!AM28*43560>1035000),AND($I$1,G76/'4 performance'!AM28*43560>1035000)), IF(OR(AND(NOT($I$1),E76<>"",E76>2500000),AND($I$1,G76<>"",G76>2500000)),", and ","Grant request ")&"exceeds $1.035M/acre managed " & "("& IF('4 performance'!AM28>0,TEXT(ROUND(IF(I1,G76/'4 performance'!AM28*43560,E76/'4 performance'!AM28*43560),1),"$#,###")&"/acre).",""),""),"") -> 
A79: =IF(B67>0.15,A67&" multiplier justification","") -> 
A80: =IF(B70>0.1,A70&" multiplier justification","") -> 

Sheet 4 performance
M1: Green Infrastructure Grant Program BMP Performance Calculator | AR1: 1
B2: Project Site Conditions
B4: Project Name | L4: ='1 application'!L6 -> 0 | W4: Total Project Site Area (ft2) | AG4: ='1 application'!L18 -> 0
B5: Parcel(s) | L5: ='1 application'!L11 -> 0 | W5: Existing Impervious Area (ft2) | AG5: ='1 application'!L19 -> 0
B6: CSD Basin | L6: ='1 application'!L15 -> 0 | W6: Stormwater Service Type | AL6: view service map
B7: Minor Watershed | L7: ='1 application'!L16 -> 0 | W7: HSG Soil Type | BA7: Add/Remove DMA
W8: =IF(AM30<>"",IF(AG6="","Enter Stormwater Service Type", IF(AG7="","Enter HSG Soil Type","")),"") -> 
B9: Proposed Stormwater Management Practice(s) | AR9: runoff captured (MG/year) | AS9: runoff removed (MG/year) | AT9: peak flow reduction (cfs) | AU9: runoff captured | AV9: runoff removed | AW9: peak flow reduction | AX9: total area | AY9: total impervious area managed
B11: DMA 1
C12: Facility Type | W12: Sizing Ratiob | AI12: of | AK12: =L14+IF(OR(L12='#lists'!$H$5,L12='#lists'!$H$6),0,L13) -> 0 | AN12: sf
C13: =IF(L12='#lists'!$H$7,"Imperv. Area Removed (ft²)","Facility Size ("& IF(OR(L12='#lists'!$H$5,L12='#lists'!$H$6),"gal)","ft²)")) -> Facility Size (ft²) | W13: Annual Runoff Captured | AI13: = | AN13: MG/year | AR13: =AJ13 -> 0 | AS13: =AJ14 -> 0 | AT13: =AJ15 -> 0 | AU13: =AF13 -> 0 | AV13: =AF14 -> 0 | AW13: =AF15 -> 0 | AX13: =AK12 -> 0 | AY13: =L14+IF(L12='#lists'!$H$7,L13)+IF(L15="Impervious",L13) -> 0
C14: =IF(L12='#lists'!$H$7,"","Imperv. Area Managed (ft²)ª") -> Imperv. Area Managed (ft²)ª | W14: Annual Runoff Removed | AI14: = | AN14: MG/year
C15: =IF(OR(L12='#lists'!$H$5,L12='#lists'!$H$6),"Re-use demand (gpd)",IF(L12='#lists'!$H$7,"","Existing Surface at Facility")) -> Existing Surface at Facility | W15: 5-yr Peak Flow Reduction | AI15: = | AN15: cfs
C16: =IF(L12='#lists'!$H$6,"Retention Storage (%)", IF(L12='#lists'!$H$2,"Lined or Infiltrative","")) ->  | W16: =IF(AF12="","", IFERROR(IF(AF12< INDEX('#sizing'!$G$4:$G$11,MATCH(L12,'#sizing'!$H$4:$H$11,0)), "Facility sizing ratio must be at least "& ROUND(INDEX('#sizing'!$G$4:$G$11,MATCH(L12,'#sizing'!$H$4:$H$11,0))*100,2)&"%", IF(AF13<0.85, "Facility does not capture 85% of annual runoff from DMA","")), IF(AF13<0.85, "Facility does not capture 85% of annual runoff from DMA",""))) -> 
B18: Project Performance
B20: Annual Runoff Captured | K20: =IFERROR(SUMPRODUCT(AU9:AU18,AX9:AX18)/SUM(AX9:AX18),"") ->  | N20: = | O20: =SUM(AR9:AR20) -> 0 | S20: MG/year | W20: Runoff collected during a typical year
B21: Annual Runoff Removed | K21: =IFERROR(SUMPRODUCT(AV9:AV18,AX9:AX18)/SUM(AX9:AX18),"") ->  | N21: = | O21: =SUM(AS9:AS18) -> 0 | S21: MG/year | W21: Runoff infiltrated or re-used during a typical year
B22: 5-yr Peak Flow Reduction | K22: =IFERROR(SUMPRODUCT(AW9:AW18,AX9:AX18)/SUM(AX9:AX18),"") ->  | N22: = | O22: =SUM(AT9:AT18) -> 0 | S22: cfs | W22: Peak flow reduced during LOS storm (5-year 3-hour event)
B24: Project Performance Minimum Requirements
B26: =IF(SUM(AX9:AX18)>0,"✓","ø") -> ø | C26: Uses approved GI Practice(s)
B28: =IF(AM28>=21780,"✓","ø") -> ø | C28: Manages a minimum of 0.5 acres (21,780 ft2) impervious area | AL28: Total Impervious Area Managed (ft2)c = | AM28: =SUM(AY9:AY18) -> 0
B30: =IFERROR(IF(AND(K20>=0.85, K20<>""),"✓","ø"),"") -> ø | C30: Meets the minimum performance requirement of capturing 90th percentile storm (0.75-inch depth, equivalent to capturing 85% runoff during the typical yeard) | AL30: Percent of Annual Stormwater Managed = | AM30: =K20 -> 
B33: Stormwater Component - Estimated Stormwater Credit
B35: Estimated Monthly Credit for Fiscal Year 2025-2026 (July 1 2025 - June 30 2026) | AA35: =AM28/1000*6.72 -> 0
B37: Visit the Stormwater Credit Program website for more information (https://stormwater.sfpuc.org/home/)
B39: a | C39: For each DMA enter the impervious area draining to the facility, excluding the facility footprint area.
B40: b | C40: Sizing ratio for rainwater harvesting cisterns is calculated as gallons per impervious area managed. Sizing ratio for all other BMPs is
C41: calculated as facility size / (imperv. area managed + facility size).
B42: c | C42: Total impervious area managed includes the facility footprint areas if they are impervious in existing conditions.
C43: This value is used to determine your maximum eligible grant amount.
B44: d | C44: 85% capture of annual runoff is assumed to be equivalent to capture of the 90th percentile storm (0.75-inch depth).
B46: Design Guidance:
B47: ● | C47: Infiltration trench performance assumes 4-ft depth filled with aggregate. Trenches within C or D soils are not recommended and performance is not provided.
B48: ● | C48: Rain gardens (flow-through planters) and permeable pavement on C or D soils will require an elevated underdrain to meet the provided performance.
B49: ● | C49: Cisterns with indoor reuse assumed a constant daily re-use rate. If daily re-use rates vary, calculate a constant effective daily re-use rate.
B50: ● | C50: Cisterns with irrigation and detention use some storage for detention (water drains via a low-flow orifice) and some storage for
C51: retention (water is stored until used for irrigation). Maximum summer irrigation demand in gallons per day is scaled based on SF climate
C52: to determine annual performance.
B53: ● | C53: The impervious removal BMP should be used when impervious surfaces are replaced with pervious landscaped surfaces.
B54: ● | C54: The impervious to landscaping BMP should be used when drainage from impervious surfaces is routed or sheet flows to a landscaped surface.
B56: BMP = best management practice | P56: DMA = drainage management area | AD56: ft2 = square feet
B57: gal = gallons | P57: GI = Green Infrastructure | AD57: gpd = gallons per day
B58: Imperv. = impervious | P58: LOS = level of service | AD58: MG = million gallons | AM58: =instructions!AE37 -> 06/26/2024

Sheet 5 co-benefits
C1: Green Infrastructure Grant Program Project Co-Benefits
B2: Project Co-Benefits
B4: Your project is required to provide at least two (2) of the co-benefits listed below. Please describe how your project satisfies the co-benefit and how your project vision will unlock social and/or environmental co-benefits over the life-span of the project. Describe how co-benefits will be integrated in the project design and how the co-benefits will contribute to the goals of your project’s key stakeholders.
B6: Refer to the Application Solicitation for the definition and scoring of each co-benefit.
C8: Environmental Justice | F8: FALSE | G8: =IF(F8,1,0) -> 0 | H8: 1
C11: Public Access, Open Space, and Recreation | F11: FALSE | G11: =IF(F11,1,0) -> 0 | H11: 1
C14: Community Engagement, Collaboration, and Placemaking | F14: FALSE | G14: =IF(F14,1,0) -> 0 | H14: 1
C17: Education and Watershed Stewardship | F17: FALSE | G17: =IF(F17,1,0) -> 0 | H17: 1
C20: Green Infrastructure Job Training | F20: FALSE | G20: =IF(F20,1,0) -> 0 | H20: 1
C23: Water Supply | F23: FALSE | G23: =IF(F23,1,0) -> 0 | H23: 1
C26: Climate Resilience | F26: FALSE | G26: =IF(F26,1,0) -> 0 | H26: 1
C29: Biodiversity | F29: FALSE | G29: =IF(F29,1,0) -> 0 | H29: 1

Sheet 6 schedule
B1: Green Infrastructure Grant Program Project Schedule
B2: Project Schedule
B4: This template is where you will outline the major milestones of your proposed project schedule. The schedule must propose starting construction of the project within 2 years after execution of the Grant Agreement and should take into account required SFPUC reviews and inspections. Please include any relevant project communications, community engagement, or co-benefit milestones.
B6: Project Milestone | I6: Completion Date | Q6: Duration | Y6: Add Row
Q8: =IFERROR( IF(OR(J8="",INDIRECT("J"&ROW()-2)=""),"0 days", J8-INDIRECT("J"&ROW()-2)&" days"),"0 days") -> 0 days
B10: Grant Agreement Execution | J10: 2025-05-01
B12: Community Engagement Milestone | Q12: =IFERROR( IF(OR(J12="",INDIRECT("J"&ROW()-2)=""),"0 days", J12-INDIRECT("J"&ROW()-2)&" days"),"0 days") -> 0 days
B14: Field Investigation - Survey, Utilities, Geotech, etc. | Q14: =IFERROR(IF(OR(J14="",INDIRECT("J"&ROW()-2)=""),"0 days", J14-INDIRECT("J"&ROW()-2)&" days"),"0 days") -> 0 days
B16: 35% Design Submittal | Q16: =IFERROR(IF(OR(J16="",INDIRECT("J"&ROW()-2)=""),"0 days", J16-INDIRECT("J"&ROW()-2)&" days"),"0 days") -> 0 days
B18: SFPUC Review of 35% Design Submittal | J18: =IF(J16="","",J16+30) ->  | Q18: =IFERROR(IF(OR(J18="",INDIRECT("J"&ROW()-2)=""),"0 days", J18-INDIRECT("J"&ROW()-2)&" days"),"0 days") -> 0 days
B20: 65% Design Submittal | Q20: =IFERROR(IF(OR(J20="",INDIRECT("J"&ROW()-2)=""),"0 days", J20-INDIRECT("J"&ROW()-2)&" days"),"0 days") -> 0 days
B22: SFPUC Review of 65% Design Submittal | J22: =IF(J20="","",J20+30) ->  | Q22: =IFERROR(IF(OR(J22="",INDIRECT("J"&ROW()-2)=""),"0 days", J22-INDIRECT("J"&ROW()-2)&" days"),"0 days") -> 0 days
B24: 95% Design Submittal | Q24: =IFERROR(IF(OR(J24="",INDIRECT("J"&ROW()-2)=""),"0 days", J24-INDIRECT("J"&ROW()-2)&" days"),"0 days") -> 0 days
B26: SFPUC Review of 95% Design Submittal | J26: =IF(J24="","",J24+30) ->  | Q26: =IFERROR(IF(OR(J26="",INDIRECT("J"&ROW()-2)=""),"0 days", J26-INDIRECT("J"&ROW()-2)&" days"),"0 days") -> 0 days
B28: Submit Final Design & Budget | Q28: =IFERROR(IF(OR(J28="",INDIRECT("J"&ROW()-2)=""),"0 days", J28-INDIRECT("J"&ROW()-2)&" days"),"0 days") -> 0 days
B30: Bid and Contractor Selection | Q30: =IFERROR(IF(OR(J30="",INDIRECT("J"&ROW()-2)=""),"0 days", J30-INDIRECT("J"&ROW()-2)&" days"),"0 days") -> 0 days
B32: Construction Begins | Q32: =IFERROR(IF(OR(J32="",INDIRECT("J"&ROW()-2)=""),"0 days", J32-INDIRECT("J"&ROW()-2)&" days"),"0 days") -> 0 days
B34: Construction Complete | Q34: =IFERROR(IF(OR(J34="",INDIRECT("J"&ROW()-2)=""),"0 days", J34-INDIRECT("J"&ROW()-2)&" days"),"0 days") -> 0 days
B36: Final Construction Inspection | Q36: =IFERROR(IF(OR(J36="",INDIRECT("J"&ROW()-2)=""),"0 days", J36-INDIRECT("J"&ROW()-2)&" days"),"0 days") -> 0 days
B38: Project Close Out | Q38: =IFERROR(IF(OR(J38="",INDIRECT("J"&ROW()-2)=""),"0 days", J38-INDIRECT("J"&ROW()-2)&" days"),"0 days") -> 0 days
B41: Project Schedule | C41: =DATE(YEAR(J10),1,1) -> 45658 | D41: =DATE(YEAR(C41),MONTH(C41)+3,1) -> 45748 | E41: =DATE(YEAR(D41),MONTH(D41)+3,1) -> 45839 | F41: 45931 | G41: 46023 | H41: 46113 | I41: 46204 | J41: 46296 | K41: 46388 | L41: 46478 | M41: 46569 | N41: 46661 | O41: 46753 | P41: 46844 | Q41: 46935 | R41: 47027 | S41: 47119 | T41: 47209 | U41: 47300 | V41: 47392
B42: Task | C42: =YEAR(C41) -> 2025 | G42: =YEAR(G41) -> 2026 | K42: =YEAR(K41) -> 2027 | O42: =YEAR(O41) -> 2028 | S42: =YEAR(S41) -> 2029
C43: Q1 | D43: Q2 | E43: Q3 | F43: Q4 | G43: Q1 | H43: Q2 | I43: Q3 | J43: Q4 | K43: Q1 | L43: Q2 | M43: Q3 | N43: Q4 | O43: Q1 | P43: Q2 | Q43: Q3 | R43: Q4 | S43: Q1 | T43: Q2 | U43: Q3 | V43: Q4
A45: 10 | B45: =B10 -> Grant Agreement Execution | C45: =IF(INDIRECT("$J"&$A45)="","", IF(AND(INDIRECT("$J"&$A45)>=C$41,INDIRECT("$J"&$A45)<D$41),"x", IF(C44="x",">",IF(OR(B45=">",B45="-"),"-","")))) ->  | D45: =IF(INDIRECT("$J"&$A45)="","", IF(AND(INDIRECT("$J"&$A45)>=D$41,INDIRECT("$J"&$A45)<E$41),"x", IF(D44="x",">",IF(OR(C45=">",C45="-"),"-","")))) -> x
A46: =A45+2 -> 12 | B46: =IF(INDIRECT("B"&A46)="","",INDIRECT("B"&A46)) -> Community Engagement Milestone | C46: =IF(INDIRECT("$J"&$A46)="","", IF(AND(INDIRECT("$J"&$A46)>=C$41,INDIRECT("$J"&$A46)<D$41),"x", IF(C45="x",">",IF(OR(B46=">",B46="-"),"-","")))) -> 
A47: =A46+2 -> 14 | B47: =IF(INDIRECT("B"&A47)="","",INDIRECT("B"&A47)) -> Field Investigation - Survey, Utilities, Geotech, etc. | C47: =IF(INDIRECT("$J"&$A47)="","", IF(AND(INDIRECT("$J"&$A47)>=C$41,INDIRECT("$J"&$A47)<D$41),"x", IF(C46="x",">",IF(OR(B47=">",B47="-"),"-","")))) -> 
A48: 16 | B48: =IF(INDIRECT("B"&A48)="","",INDIRECT("B"&A48)) -> 35% Design Submittal | C48: =IF(INDIRECT("$J"&$A48)="","", IF(AND(INDIRECT("$J"&$A48)>=C$41,INDIRECT("$J"&$A48)<D$41),"x", IF(C47="x",">",IF(OR(B48=">",B48="-"),"-","")))) -> 
A49: 18 | B49: SFPUC Review of 35% Design Submittal | C49: =IF(INDIRECT("$J"&$A49)="","", IF(AND(INDIRECT("$J"&$A49)>=C$41,INDIRECT("$J"&$A49)<D$41),"x", IF(C48="x",">",IF(OR(B49=">",B49="-"),"-","")))) -> 
A50: 20 | B50: 65% Design Submittal | C50: =IF(INDIRECT("$J"&$A50)="","", IF(AND(INDIRECT("$J"&$A50)>=C$41,INDIRECT("$J"&$A50)<D$41),"x", IF(C49="x",">",IF(OR(B50=">",B50="-"),"-","")))) -> 
A51: 22 | B51: SFPUC Review of 65% Design Submittal | C51: =IF(INDIRECT("$J"&$A51)="","", IF(AND(INDIRECT("$J"&$A51)>=C$41,INDIRECT("$J"&$A51)<D$41),"x", IF(C50="x",">",IF(OR(B51=">",B51="-"),"-","")))) -> 
A52: 24 | B52: 95% Design Submittal | C52: =IF(INDIRECT("$J"&$A52)="","", IF(AND(INDIRECT("$J"&$A52)>=C$41,INDIRECT("$J"&$A52)<D$41),"x", IF(C51="x",">",IF(OR(B52=">",B52="-"),"-","")))) -> 
A53: 26 | B53: SFPUC Review of 95% Design Submittal | C53: =IF(INDIRECT("$J"&$A53)="","", IF(AND(INDIRECT("$J"&$A53)>=C$41,INDIRECT("$J"&$A53)<D$41),"x", IF(C52="x",">",IF(OR(B53=">",B53="-"),"-","")))) -> 
A54: 28 | B54: =IF(INDIRECT("B"&A54)="","",INDIRECT("B"&A54)) -> Submit Final Design & Budget | C54: =IF(INDIRECT("$J"&$A54)="","", IF(AND(INDIRECT("$J"&$A54)>=C$41,INDIRECT("$J"&$A54)<D$41),"x", IF(C53="x",">",IF(OR(B54=">",B54="-"),"-","")))) ->  | M54: =IF(INDIRECT("$J"&$A54)="","", IF(AND(INDIRECT("$J"&$A54)>=M$41,INDIRECT("$J"&$A54)<N$41),"x", IF(M53="x",">",IF(OR(L54=">",L54="-"),"-","")))) -> 
A55: 30 | B55: Bid and Contractor Selection
A56: 32 | B56: Construction Begins
A57: 34 | B57: Construction Complete
A58: 36 | B58: Final Construction Inspection
A59: 38 | B59: Project Close Out
A60: x

Sheet 7 maint tasks
B1: Green Infrastructure Grant Program Project Maintenance Plan
B2: Maintenance Plan
B4: Please provide a narrative description of the proposed maintenance plan, including who will be responsible for maintaining the project and if special equipment is required to carry out the maintenance.
B5: ="(" & IF(LEN(TRIM(B6))=0,0,LEN(TRIM(B6))-LEN(SUBSTITUTE(B6," ",""))+1) & " of 500 words)" -> (0 of 500 words)
B8: Project Operations and Maintenance Activities
B10: Please refer to the BMP Fact Sheets found in Appendix A of the SMR design guidelines for typical maintenance activities and
B11: frequencies for the BMPs in your project. Proprietary BMPs should follow maintenance activities and frequencies recommended by the manufacturer. Note that your project will be subject to a 20-year maintenance agreement as part of the grant award and agreement as described in the grant guidebook.
H12: Click Here to add more rows
B13: BMP | C13: Maintenance Activity | D13: Schedule
B14: Bioretention/Rain Garden | C14: Regularly water during the first three months as vegetation establishes roots. | D14: Post-construction | H14: =COUNTIFS('4 performance'!L:L,B14)>0 -> FALSE
B15: Bioretention/Rain Garden | C15: Trim vegetation as needed to maintain desired appearance. | D15: Monthly or as needed | H15: =COUNTIFS('4 performance'!L:L,B15)>0 -> FALSE
B16: Bioretention/Rain Garden | C16: Remove visible contaminants, debris, and trash from inlets and outlets to avoid clogging. | D16: Semi-annually (beginning and end of rainy season) | H16: =COUNTIFS('4 performance'!L:L,B16)>0 -> FALSE
B17: Bioretention/Rain Garden | C17: Add mulch to bare areas and remove any mulch that has become fouled with sediment, oil and grease, or other hazardous material. | D17: Semi-annually (beginning and end of rainy season) | H17: =COUNTIFS('4 performance'!L:L,B17)>0 -> FALSE
B18: Bioretention/Rain Garden | C18: Prune vegetation obstructing line of site at roadway or intersection. | D18: Quarterly | H18: =COUNTIFS('4 performance'!L:L,B18)>0 -> FALSE
B19: Bioretention/Rain Garden | C19: Replace dead, damaged, or diseased plants and provide weed control. | D19: Annually | H19: =COUNTIFS('4 performance'!L:L,B19)>0 -> FALSE
B20: Bioretention/Rain Garden | C20: Regrade soil surface if erosion or scouring has occurred. | D20: Annually | H20: =COUNTIFS('4 performance'!L:L,B20)>0 -> FALSE
B21: Bioretention/Rain Garden | C21: Till or aerate soil and replant if the system does not drain within the design drain time. | D21: As needed (expected to be 3 to 5 years) | H21: =COUNTIFS('4 performance'!L:L,B21)>0 -> FALSE
B22: Bioretention/Rain Garden | C22: Repair or replace damaged or detached impermeable liners, if applicable. | D22: Semi-annually or as needed | H22: =COUNTIFS('4 performance'!L:L,B22)>0 -> FALSE
B23: Bioretention/Rain Garden | C23: Consult with a licensed professional pest control service if rodent or animal damage is observed. | D23: Annually or as needed | H23: =COUNTIFS('4 performance'!L:L,B23)>0 -> FALSE
B24: Bioretention/Rain Garden | C24: Utilize Integrated Pest Management (IPM) strategies to safely and effectively minimize pest damage and hazard. | D24: As needed | H24: =COUNTIFS('4 performance'!L:L,B24)>0 -> FALSE
B25: Infiltration Trench/Gallery | C25: Remove sediment and oil / grease from pretreatment devices and overflow structures. | D25: Semi-annually or as needed | H25: =COUNTIFS('4 performance'!L:L,B25)>0 -> FALSE
B26: Infiltration Trench/Gallery | C26: Replace gravel when clogged. | D26: As needed | H26: =COUNTIFS('4 performance'!L:L,B26)>0 -> FALSE
B27: Infiltration Trench/Gallery | C27: Rehabilitate trench to original storage capacity and 24-48-hour drain rate by removing trench rock, tilling the bottom of the trench, and replacing the bottom layer of sand. | D27: Upon failure | H27: =COUNTIFS('4 performance'!L:L,B27)>0 -> FALSE
B28: Infiltration Trench/Gallery | C28: Remove visible contaminants, debris, and trash from inlets and outlets to avoid clogging. | D28: Semi-annually (beginning and end of rainy season) | H28: =COUNTIFS('4 performance'!L:L,B28)>0 -> FALSE
B29: Infiltration Trench/Gallery | C29: Repair any erosion within the facility or surrounding areas. | D29: Annually | H29: =COUNTIFS('4 performance'!L:L,B29)>0 -> FALSE
B30: Infiltration Trench/Gallery | C30: If subsurface infiltration system has not drained within 24-48 hours after end of a wet weather event, drain system via pumping, clean perforated piping and gravel media, and excavate soil walls of unlined subsurface infiltration system to expose clean soil (typically 2 inches). | D30: Upon failure (expected to be > 10 years) | H30: =COUNTIFS('4 performance'!L:L,B30)>0 -> FALSE
B31: Perm Pavement | C31: Vacuum permeable surface. | D31: Semi-annually (beginning and end of rainy season) | H31: =COUNTIFS('4 performance'!L:L,B31)>0 -> FALSE
B32: Perm Pavement | C32: Replace or repair damaged or settled pavement. | D32: Annually or as needed | H32: =COUNTIFS('4 performance'!L:L,B32)>0 -> FALSE
B33: Perm Pavement | C33: Maintain planted areas adjacent to pavement | D33: Annually or as needed | H33: =COUNTIFS('4 performance'!L:L,B33)>0 -> FALSE
B34: Perm Pavement | C34: Lift surface paving units to clean and/or replace underlying aggregate - may require special disposal if containing metals or hazardous materials. | D34: Every 10-15 years or as needed | H34: =COUNTIFS('4 performance'!L:L,B34)>0 -> FALSE
B35: Perm Pavement | C35: If routine maintenance does not restore the infiltration rate, rehabilitate pavement by removing and replacing clogged section. | D35: Upon failure (expected to be > 20 years) | H35: =COUNTIFS('4 performance'!L:L,B35)>0 -> FALSE
B36: Cistern - Indoor Reuse | C36: Remove algae growth if present | D36: Semi-annually or as needed | H36: =COUNTIFS('4 performance'!L:L,B36)>0 -> FALSE
B37: Cistern - Indoor Reuse | C37: Clean prescreening devices, first flush diverters, and storage tank interiors with a non-toxic cleaner, such as vinegar. | D37: Annually | H37: =COUNTIFS('4 performance'!L:L,B37)>0 -> FALSE
B38: Cistern - Indoor Reuse | C38: Clear litter, sediment, visible contaminants, debris, and any overhanging vegetation from drainage management area, gutters, collection and conveyance system, and screens. | D38: As needed | H38: =COUNTIFS('4 performance'!L:L,B38)>0 -> FALSE
B39: Cistern - Indoor Reuse | C39: Replace or repair any damaged or non-functioning parts. | D39: As needed | H39: =COUNTIFS('4 performance'!L:L,B39)>0 -> FALSE
B40: Cistern - Indoor Reuse | C40: Use stored water periodically during the rainy season to ensure that storage is available for the next rain event. | D40: As needed | H40: =COUNTIFS('4 performance'!L:L,B40)>0 -> FALSE
B41: Cistern - Indoor Reuse | C41: For proprietary systems, refer to manufacturer’s Operations and Maintenance documentation for additional maintenance activities. | D41: As needed | H41: =COUNTIFS('4 performance'!L:L,B41)>0 -> FALSE
B42: Cistern - Irrigation and Detention | C42: Remove litter, oil, and grease from inlet and outlet areas. | D42: Semi-annually (beginning and end of rainy season) | H42: =COUNTIFS('4 performance'!L:L,B42)>0 -> FALSE
B43: Cistern - Irrigation and Detention | C43: Remove accumulated sediment when the 0.5 to 1-ft deep sediment storage zone is full – may require special disposal if sediment contains metals or trace organic compounds. | D43: Bi-annually or as needed | H43: =COUNTIFS('4 performance'!L:L,B43)>0 -> FALSE
B44: Cistern - Irrigation and Detention | C44: Remove trash and debris from inlet, outlet, and overflow devices to prevent clogging. | D44: Semi-annually (beginning and end of rainy season) | H44: =COUNTIFS('4 performance'!L:L,B44)>0 -> FALSE
B45: Vegetated Roof | C45: Clean visible drainage features and collection and conveyance structures. | D45: Semi-annually or as needed | H45: =COUNTIFS('4 performance'!L:L,B45)>0 -> FALSE
B46: Vegetated Roof | C46: Maintenance of permanent irrigation (if present), including monitoring of irrigation schedule. | D46: Semi-annually or as needed | H46: =COUNTIFS('4 performance'!L:L,B46)>0 -> FALSE
B47: Vegetated Roof | C47: Replace dead vegetation and remove weeds or excessive leaf litter, visible contaminants, sediment, debris, or trash. | D47: Annually or as needed | H47: =COUNTIFS('4 performance'!L:L,B47)>0 -> FALSE
B48: Vegetated Roof | C48: Repair eroded areas. | D48: Annually or as needed | H48: =COUNTIFS('4 performance'!L:L,B48)>0 -> FALSE
B49: Vegetated Roof | C49: Reseed and apply mulch to bare spots. | D49: Annually or as needed | H49: =COUNTIFS('4 performance'!L:L,B49)>0 -> FALSE
B50: Vegetated Roof | C50: Consult with a licensed professional pest control service if rodent or animal damage is observed. | D50: Annually or as needed | H50: =COUNTIFS('4 performance'!L:L,B50)>0 -> FALSE
B51: Vegetated Roof | C51: For proprietary systems, refer to manufacturer’s Operations and Maintenance documentation for additional inspection activities. | D51: As needed | H51: =COUNTIFS('4 performance'!L:L,B51)>0 -> FALSE

Sheet summary (hidden)
M1: Green Infrastructure Grant Program Project Rating - SF PUC ONLY
B2: Project Information
B4: Project Name | M4: ='1 application'!L6 -> 0
B5: Parcel(s) | M5: ='1 application'!L11 -> 0
B6: Watershed | M6: ='1 application'!L15 -> 0
B7: Minor Watershed | M7: ='1 application'!L16 -> 0
B9: Total Project Site Area (ft2) | M9: ='1 application'!L18 -> 0 | R9: Stormwater Service Type | AB9: ='4 performance'!AG6 -> 0
B10: Existing Impervious Area (ft2) | M10: ='1 application'!L19 -> 0 | R10: HSG Soil Type | AB10: ='4 performance'!AG7 -> 0
B11: Impervious Area Managed (ft2) | M11: ='4 performance'!AM28 -> 0
B13: Minor Watershed Effectiveness Priority
C15: CSD Volume Reduction | O15: =INDEX('#data'!O:O,MATCH(M7,'#data'!J:J,0)) ->  | S15: =INDEX('#data'!L:L,MATCH('4 performance'!L7,'#data'!J:J,0))*1000000 ->  | W15: gal/year/acre managed
C16: Flood Reduction | O16: =INDEX('#data'!P:P,MATCH(M7,'#data'!J:J,0)) ->  | S16: =INDEX('#data'!N:N,MATCH('4 performance'!L7,'#data'!J:J,0))*1000000 ->  | W16: gal/LOS/acre managed
C18: Runoff per Acre | M18: =21.9/12*0.9*43560*7.48052/1000000 -> 0.5352110086 | Q18: MG/acre
C19: LOS Peak Flow | M19: 2.87 | Q19: cfs/acre
B21: Stormwater Performance Score
B23: Site Performance
C24: Runoff Captured | S24: ='4 performance'!K20 ->  | V24: ='4 performance'!O20 -> 0 | Z24: MG/year
C25: Runoff Removed | S25: ='4 performance'!K21 ->  | V25: ='4 performance'!O21 -> 0 | Z25: MG/year
C26: Peak Flow Reduction | S26: ='4 performance'!K22 ->  | V26: ='4 performance'!O22 -> 0 | Z26: cfs
B28: Watershed Performance | O28: Volume | V28: Value
C29: WQ Treatment (MS4 Areas) | O29: =IF('4 performance'!AG6='#lists'!U2,V25*1000000,0) -> 0 | S29: gal/year | Y29: =ROUND(O29*L60,-3) -> 0
C30: CSD Reduction (CSS Areas) | O30: =IF('4 performance'!AG6='#lists'!U3,S25*M11/43560*S15,0) -> 0 | S30: gal/year | Y30: =ROUND(O30*L61,-3) -> 0
C31: Flood Reduction (CSS Areas) | O31: =IF('4 performance'!AG6='#lists'!U3,S26*M11/43560*S16,0) -> 0 | S31: gal/LOS | Y31: =ROUND(O31*L62,-3) -> 0
C32: Reduced Potable Demand | S32: gal/year | Y32: =ROUND(O32*L63,-3) -> 0 | AC32: <-- not calculated, manually calculate as needed
C33: Groundwater Recharge | O33: 0 | S33: gal/year | Y33: =ROUND(O33*L64,-3) -> 0
C34: Total Stormwater Performance Value | Y34: =ROUND((O29*L60 + O30*L61 + O31*L62 + O32*L64 + O33*L63),-3) -> 0
C35: Total Estimated Project Cost | Y35: ='1 application'!N45 -> 0
C36: Cost Effectiveness Ratio (Value:Estimate) | V36: =IFERROR(Y34/Y35,0) -> 0
B38: Project Minimum Requirements
B40: Project Design
C41: =IF(P41>=0.5,"✓","ø") -> ø | D41: Impervious Area Managed | P41: =M11/43560 -> 0 | T41: ≥ 0.5 acres
C42: =IF(P42>=2,"✓","ø") -> ø | D42: Co-Benefits | P42: =SUMPRODUCT('5 co-benefits'!G8:G29,'5 co-benefits'!H8:H29) -> 0 | T42: ≥ 2
D43: Facility Type(s) | T43: approved GI practice(s)
B45: Project Performance
C46: =IF(P46="","ø",IF(P46>=0.8,"✓","ø")) -> ø | D46: Project Site Performance | P46: =S24 ->  | T46: 90%ile storm (> 85% typtical year)
C47: =IF(P47<=750000,"✓","ø") -> ✓ | D47: Under Cost Cap | P47: =IFERROR('1 application'!N45/P41,0) -> 0 | T47: < $750,000/acre managed
C48: =IF(P48>=1,"✓","ø") -> ø | D48: Cost-Effectiveness | P48: =V36 -> 0 | T48: >1 (value:estimate)
B49: Project Feasibility
C50: =IF(P50<=0.2,"✓","ø") -> ø | D50: Design and Admin Costs | P50: ='3 budget'!B74 ->  | T50: ≤ 20% of total grant
A58: Cost Effectiveness Metrics
B60: WQ Value (MS4 Areas) | L60: 1 | U60: /gal managed
B61: CSD Value (CSS Areas) | L61: 1.91 | U61: /gal managed
B62: Flood Value (CSS Areas) | L62: 40 | U62: /gal managed
B63: WW Operations | L63: 0.01 | U63: /gal managed
B64: Water Supply | L64: 0.01 | U64: /gal managed
B66: Weighting
D67: VTY (captured) | L67: 0 | W67: CSD Reduction Value
D68: VTY (reduced) | L68: 1
AJ69: of
D70: V2-yr,24-hr | L70: - | W70: Not Used
D71: Q2-yr,24-hr | L71: -
D73: VLOS | L73: 0 | W73: Flood Reduction Value
D74: QLOS | L74: 1

Sheet tracking (hidden)
A1: Application Input | B1: Input Value
A2: Version Date | B2: =instructions!AE37 -> 06/26/2024
A3: Project Name | B3: ='1 application'!L6 -> 0
A4: Date | B4: ='1 application'!Q6 -> 0
A5: Applicant Name | B5: ='1 application'!L7 -> 0
A6: Applicant Organization | B6: ='1 application'!L8 -> 0
A7: Project Address | B7: ='1 application'!L10 -> 0
A8: Property Number (Block/Lot) | B8: ='1 application'!L11 -> 0
A9: Watershed | B9: ='1 application'!L15 -> 0
A10: Minor Watershed | B10: ='1 application'!L16 -> 0
A11: Total Project Site Area (ft2) | B11: ='1 application'!L18 -> 0
A12: Existing Impervious Area (ft2) | B12: ='1 application'!L19 -> 0
A13: Brief Project Description | B13: ='1 application'!B24:V24 -> 0
A14: Property Owner - Name | B14: ='1 application'!L27 -> 0
A15: Property Owner - Contact | B15: ='1 application'!M27 -> 0
A16: Project Manager - Name | B16: ='1 application'!L28 -> 0
A17: Project Manager - Contact | B17: ='1 application'!M28 -> 0
A18: Design Professional(s) - Name | B18: ='1 application'!L29 -> 0
A19: Design Professional(s) - Contact | B19: ='1 application'!M29 -> 0
A20: Additional Team Member 1 - Title | B20: ='1 application'!B30 -> Community Team Members (optional)
A21: Additional Team Member 1 - Name | B21: ='1 application'!L30 -> 0
A22: Additional Team Member 1 - Contact | B22: ='1 application'!M30 -> 0
A23: Additional Team Member 2 - Title | B23: ='1 application'!B31 -> Property Steward (optional)
A24: Additional Team Member 2 - Name | B24: ='1 application'!L31 -> 0
A25: Additional Team Member 2 - Contact | B25: ='1 application'!M31 -> 0
A26: Additional Team Member 3 - Title | B26: ='1 application'!B32 -> 0
A27: Additional Team Member 3 - Name | B27: ='1 application'!L32 -> 0
A28: Additional Team Member 3 - Contact | B28: ='1 application'!M32 -> 0
A29: Additional Team Member 4 - Title | B29: ='1 application'!B33 -> 0
A30: Additional Team Member 4 - Name | B30: ='1 application'!L33 -> 0
A31: Additional Team Member 4 - Contact | B31: ='1 application'!M33 -> 0
A32: Project Narrative | B32: ='2 narratives'!B6 -> 0
A33: Grant Team Experience | B33: ='2 narratives'!B12 -> 0
A34: Project Staff Salaries and Wages
A35: Engineering/ Design
A36: Subtotal - Administration and Design | B36: ='3 budget'!E17 -> 0 | C36: ='3 budget'!F17 -> 0 | D36: ='3 budget'!G17 -> 0
A37: Site Demolition | B37: ='3 budget'!E25 -> 0 | C37: ='3 budget'!F25 -> 0 | D37: ='3 budget'!G25 -> 0
A38: Structural System Components | B38: ='3 budget'!E34 -> 0 | C38: ='3 budget'!F34 -> 0 | D38: ='3 budget'!G34 -> 0
A39: Conveyance | B39: ='3 budget'!E41 -> 0 | C39: ='3 budget'!F41 -> 0 | D39: ='3 budget'!G41 -> 0
A40: Media, Landscaping, Surfacing, Restoration | B40: ='3 budget'!E49 -> 0 | C40: ='3 budget'!F49 -> 0 | D40: ='3 budget'!G49 -> 0
A41: Site Control | B41: ='3 budget'!E56 -> 0 | C41: ='3 budget'!F56 -> 0 | D41: ='3 budget'!G56 -> 0
A42: Miscellaneous Construction | B42: ='3 budget'!E61 -> 0 | C42: ='3 budget'!F61 -> 0 | D42: ='3 budget'!G61 -> 0
A43: Subtotal - Construction | B43: ='3 budget'!E63 -> 0 | C43: ='3 budget'!F63 -> 0 | D43: ='3 budget'!G63 -> 0
A44: Design Contingency - % | B44: ='3 budget'!B67 -> 0.15
A45: General Conditions - % | B45: ='3 budget'!#REF! -> 
A46: Insurance and Bond - % | B46: ='3 budget'!#REF! -> 
A47: Construction Contingency - % | B47: ='3 budget'!B70 -> 0.1
A48: General Contractor Overhead and Profit - % | B48: ='3 budget'!#REF! -> 
A49: Design Contingency | B49: ='3 budget'!E67 -> 0 | C49: ='3 budget'!F67 -> 0 | D49: ='3 budget'!G67 -> 0
A50: General Conditions | B50: ='3 budget'!#REF! ->  | C50: ='3 budget'!#REF! ->  | D50: ='3 budget'!#REF! -> 
A51: Insurance and Bond | B51: ='3 budget'!#REF! ->  | C51: ='3 budget'!#REF! ->  | D51: ='3 budget'!#REF! -> 
A52: Construction Contingency | B52: ='3 budget'!E70 -> 0 | C52: ='3 budget'!F70 -> 0 | D52: ='3 budget'!G70 -> 0
A53: General Contractor Overhead and Profit | B53: ='3 budget'!#REF! ->  | C53: ='3 budget'!#REF! ->  | D53: ='3 budget'!#REF! -> 
A54: Total Project Cost | B54: ='3 budget'!E72 -> 0 | C54: ='3 budget'!F72 -> 0 | D54: ='3 budget'!G72 -> 0
A55: Design and Administration | B55: ='3 budget'!E74 -> 0 | C55: ='3 budget'!F74 -> 0 | D55: ='3 budget'!G74 -> 0
A56: Construction
A57: Stormwater Service Type | B57: ='4 performance'!AG6 -> 0
A58: HSG Soil Type | B58: ='4 performance'!AG7 -> 0
A59: BMP TYPE 1 | B59: ='4 performance'!L13 -> 0
A60: Facility Size Units | B60: ='4 performance'!L13 -> 0
A61: Facility Size | B61: ='4 performance'!L14 -> 0
A62: Imperv. Area Managed (ft2) | B62: ='4 performance'!L15 -> 0
A63: Re-use demand (gpd) | B63: ='4 performance'!L16 -> 0
A64: Retention Storage (%) | B64: ='4 performance'!L17 -> 0
A65: BMP TYPE 2
A66: Facility Size Units
A67: Facility Size
A68: Imperv. Area Managed (ft2)
A69: Re-use demand (gpd)
A70: Retention Storage (%)
A71: BMP TYPE 3
A72: Facility Size Units
A73: Facility Size
A74: Imperv. Area Managed (ft2)
A75: Re-use demand (gpd)
A76: Retention Storage (%)
A77: Runoff Captured | B77: ='4 performance'!K20 -> 
A78: Runoff Removed | B78: ='4 performance'!K21 -> 
A79: Peak Flow Reduction | B79: ='4 performance'!K22 -> 
A80: Runoff Captured (MG/yr) | B80: ='4 performance'!O20 -> 0
A81: Runoff Removed (MG/yr) | B81: ='4 performance'!O21 -> 0
A82: Peak Flow Reduction (cfs) | B82: ='4 performance'!O22 -> 0
A83: Total Impervious Area Managed (ft2) | B83: ='4 performance'!AM28 -> 0
A84: Percent of Annual Stormwater Managed | B84: ='4 performance'!AM30 -> 
A85: Located in or serving EJ Area or DC | B85: ='5 co-benefits'!F8 -> FALSE
A86: Located in or serving EJ Area or DC - narrative | B86: ='5 co-benefits'!C9 -> 0
A87: Public Access Opportunities | B87: ='5 co-benefits'!F11 -> FALSE
A88: Public Access Opportunities - narrative | B88: ='5 co-benefits'!C12 -> 0
A89: Groundwater Recharge | B89: ='5 co-benefits'!F14 -> FALSE
A90: Groundwater Recharge - narrative | B90: ='5 co-benefits'!C15 -> 0
A91: Non-potable Water Reuse | B91: ='5 co-benefits'!F17 -> FALSE
A92: Non-potable Water Reuse - narrative | B92: ='5 co-benefits'!C18 -> 0
A93: Education and/or Cirriculum Opportunities | B93: ='5 co-benefits'!F20 -> FALSE
A94: Education and/or Cirriculum Opportunities - narrative | B94: ='5 co-benefits'!C21 -> 0
A95: Job Training Opportunities | B95: ='5 co-benefits'!F23 -> FALSE
A96: Job Training Opportunities - narrative | B96: ='5 co-benefits'!C24 -> 0
A97: Increase Biodiversity/Native Habitat | B97: ='5 co-benefits'!F26 -> FALSE
A98: Increase Biodiversity/Native Habitat - narrative | B98: ='5 co-benefits'!C27 -> 0
A99: Grant Agreement Execution | B99: ='6 schedule'!J10 -> 2025-05-01
A100: 35% Design | B100: ='6 schedule'!J16 -> 00:00:00
A101: 65% Design | B101: ='6 schedule'!J20 -> 00:00:00
A102: 95% Design | B102: ='6 schedule'!J24 -> 00:00:00
A103: Submit Final Design & Budget | B103: ='6 schedule'!J28 -> 00:00:00
A104: Bid and Contractor Selection | B104: ='6 schedule'!J30 -> 00:00:00
A105: Construction | B105: ='6 schedule'!J34 -> 00:00:00
A106: Final Construction Inspection | B106: ='6 schedule'!J36 -> 00:00:00
A107: Project Close Out | B107: ='6 schedule'!J38 -> 00:00:00
A108: Maintenance Activity 1 | B108: ='7 maint tasks'!#REF! -> 
A109: =A108&" - Schedule" -> Maintenance Activity 1 - Schedule | B109: ='7 maint tasks'!#REF! -> 
A110: Maintenance Activity 2 | B110: ='7 maint tasks'!#REF! -> 
A111: =A110&" - Schedule" -> Maintenance Activity 2 - Schedule | B111: ='7 maint tasks'!#REF! -> 
A112: Maintenance Activity 3 | B112: ='7 maint tasks'!#REF! -> 
A113: =A112&" - Schedule" -> Maintenance Activity 3 - Schedule | B113: ='7 maint tasks'!#REF! -> 
A114: Maintenance Activity 4 | B114: ='7 maint tasks'!#REF! -> 
A115: =A114&" - Schedule" -> Maintenance Activity 4 - Schedule | B115: ='7 maint tasks'!#REF! -> 
A116: Maintenance Activity 5 | B116: ='7 maint tasks'!#REF! -> 
A117: =A116&" - Schedule" -> Maintenance Activity 5 - Schedule | B117: ='7 maint tasks'!#REF! -> 
A118: Maintenance Activity 6 | B118: ='7 maint tasks'!#REF! -> 
A119: =A118&" - Schedule" -> Maintenance Activity 6 - Schedule | B119: ='7 maint tasks'!#REF! -> 
A120: Maintenance Activity 7 | B120: ='7 maint tasks'!#REF! -> 
A121: =A120&" - Schedule" -> Maintenance Activity 7 - Schedule | B121: ='7 maint tasks'!#REF! -> 
A122: Maintenance Activity 8 | B122: ='7 maint tasks'!#REF! -> 
A123: =A122&" - Schedule" -> Maintenance Activity 8 - Schedule | B123: ='7 maint tasks'!#REF! -> 
A124: Maintenance Activity 9 | B124: ='7 maint tasks'!#REF! -> 
A125: =A124&" - Schedule" -> Maintenance Activity 9 - Schedule | B125: ='7 maint tasks'!#REF! -> 

Sheet example (hidden)
A1: Project Name | B1: Minor Watershed | C1: Soil Type | D1: Facility Type | E1: Facility Input | F1: Facility Size (sq ft) | G1: Drainage Area (sq ft) | H1: Total Impervious Area
A2: Stevenson | B2: 40-H | C2: A | D2: Dry creek | E2: Infiltration Trench | F2: 407 | G2: 15726 | H2: =SUM(G2:G4) -> 36476
D3: Permeable pavement | E3: Perm Pavement | F3: 1099 | G3: 15009
D4: Convert impervious to landscape | E4: Impervious Removal | F4: 5741 | G4: 5741
A5: Lafayette | B5: 40-B | C5: A | D5: Downspout with flow spreader to traditional planter | E5: Rain Garden | F5: 1142 | G5: 6600 | H5: =SUM(G5:G8) -> 34975
D6: Dry creek | E6: Infiltration Trench | F6: 1700 | G6: =10200+10725 -> 20925
D7: Treatment planter | E7: Rain Garden | F7: 400 | G7: 2350
D8: Convert impervious to landscape | E8: Impervious Removal | F8: 5100 | G8: 5100
A9: Lafayette per Stormwater Management Plan | B9: 40-B | C9: A | D9: Bioretention | E9: Rain Garden | F9: 410 | G9: 2350 | H9: =G9+G10 -> 21700
D10: Dry Creek Bed | E10: Infiltration Trench | F10: =1020+2000 -> 3020 | G10: =9370+9980 -> 19350

Sheet calculator notes (hidden)
A1: Sizing for 85th percentile
A2: * | B2: 80% long term runoff capture is considered equivalent to capture of the 85th percentile storm per SFPUC Stormwater Management
B3: Requirements and Design Guidelines Supplement: Accepted Hydrologic Calculation Methods
A4: * | B4: All GI facilities included in this calculator that are sized to capture 80% of annual runoff will meet 25% reduction in the LOS peak flow,
B5: except for rainwater harvesting where cisterns are sized too small for peak flow capture. It's possible for RWH cisterns can be sized to
B6: meet both 80% annual capture and 25% LOS peak flow reduction, however the LOS storm is controlling for smaller cisterns.
A8: Minor Watershed Performance
A9: * | B9: Spatial effectivness by minor watershed was modeled under TO 85 task H1 - GI Redefinition. These values are appropriate for planning
B10: level use where proposed GI projects have not yet been explicilty modeled in ICM.
B11: [see P:\1067 SSIP Watershed Mgmt TO84\400 Technical\410 H1 - GI Redefinition\416 Performance - GI spatial performance estimates]
B12: Modeling specific notes:
B13: 1) | C13: Performance estimates originated from spatial analysis model runs conducted during UWA, and then were refined
C14: during the CSP based on model runs of individual GI projects.
B15: 2) | C15: Initial CSD performance basis, prior to CSP refinements: Westside CSD reduction calculated by converting impervious
C16: area to GI runoff surfaces in ICM. North Shore and Channel reductions calculated by removing impervious area.
C17: Islais Creek reductions estimated from sensitivity analyses. For Islais Creek, each minor watershed was not isolated per
C18: model run, but rather, statistical analyses were done to calculate correlation between CSD volume reduction
C19: per GI changes in each minor watershed.
B20: 3) | C20: There is no CSD event during the typical year model run in Yosemite or Sunnydale. Thus, estimated reduction
C21: reflects performance from long-term historical record. Basis is performance from individually modeled projects;
C22: however, performance in Yosemite is contigent upon operation of Griffith PS and sensitivity of model results at Islais Creek.
C23: Estimated effectiveness in Yosemite minor watersheds would be significantly less if Islais Creek reductions were
C24: not included. Ultimately, no GI projects were recommended in Yosemite as Tier 1 projects in the CSP.
B25: 4) | C25: Initial basis is the Bayside Flooding Analyses - Model Version EHY13_v280, Baseline. Impervious area converted to
C26: 3L Rain Garden or 9L FTP pending infiltration conditions (Dec. 2015).
B27: 5) | C27: Initial basis is the Westside Flooding (and CSD) Analyses - EHY13_v211, Baseline. All acreaged managed by GI was
C28: converted to 1S infiltrative green streets small runoff surface (Nov-Dec 2014).
A29: * | B29: Yosemite and Sunnydale watersheds do not contribute to a combined sewer, therefore generic low values were assigned to each.
A30: * | B30: Performance of a few outlier minor watershed during LOS should be re-checked against Mira's modeling, i.e., 40-F in the
B31: Sunset, 60-B and 60-E in Lake Merced.
A33: Area Managed
A34: * | B34: In the calculator, facility footprint is not included as area managed (except for imervious area removal) when determining if a project
B35: manages greater than 0.5 acres of impervious area.
A36: * | B36: Sizing ratios are calculated as facility footprint / (facility footprint + contributing impervious area). This is generally consistent with
B37: how the GI facilities were modeled and how reference performance tables were built, i.e. a 1 acre drainage basin with 2% of
B38: the surface area occupied by GI.
A39: * | B39: Rainwater harvesting cisterns are assumed to have no footprint.
A41: Hydrology
A42: * | B42: Volume of runoff during the typical year is caluclated to be 0.535 MG per acre which assumes 21.9 inches of rainfall and a
B43: 0.9 runoff coefficient
A44: * | B44: The LOS event is the 5-year 3-hour storm event assumed to have a 2.87 cfs runoff peak.
A45: * | B45: These values are hard coded into the performance macro to calculate runoff reduction volume and peak flow cfs reduction.
A47: Performance
A48: * | B48: Performance for rain gardens, infiltration trenches, permeable pavement, and green roofs was modeled for the typical year,
B49: 2-year 24-hour event, and LOS (5-year 3-hour) during the development of the UWA Incentives Rebate Calculator (SWMM 5.1
B50: January 2016) under TO 46 Wet Weather Rate Analysis.
B51: [see P:\1061 Wet Weather Rate Analysis\400 Technical\Advanced UWA Rebate Calculator version 8]
B52: Facility Specific Notes from the UWA modeling effort:
B53: 1 | C53: Sizing Ratio is a measure of the size of a GI facility relative to the impervious area that drains to and is managed by
C54: that facility (i.e., its DMA). Rainwater Harvesting (RWH) sizing ratio is a measure of storage volume to DMA (gal/sf),
C55: and the other GI types are a measure of facility area to DMA (%).
B56: 2 | C56: Performance was estimated using SWMM version 5.1 performed in January-February 2016.
B57: 3 | C57: Permeable Pavement with 25% sizing ratio is modeled as 8 inches of pervious concrete with 12 inches of gravel
C58: bedding. 100% sizing is modeled as unit pavers with 2 inches of bedding (e.g., a patio).
B59: 5 | C59: Initial water levels for storm event with variable cistern sizes were calculated by CSS Sizer.
B60: 7 | C60: Blue Roof is a simulated tray system modeled as 1 inch of depression storage over the managed area. Storage is assumed
C61: to be 50% full when the design storm hits
B62: 8 | C62: Green Roof LOS volume reduction was taken as the average of the annual and 2-yr, 24-hr values.
C63: The SWMM results for LOS performance were overstated in the team's opinion.
A64: * | B64: Rainwater Harvesting performance was modeled for this effort under both indoor and outdoor use for the typical year
B65: (using a 30-year timeseries) and for the LOS event. Modeling assumed a fixed draingae area, variable cistern size, variable re-use rates.
B66: For outdoor re-use modeling variable dead/live storage ratios and orifice sizes were modeled.
A67: * | B67: Permeable pavement was modeled for this effort for sizing factors below 25% using the permeable pavement LID control in SWMM
B68: using the same assumptions as the UWA modleing for 25% and 100% sizing factors.
A69: * | B69: Impervious removal, see section below.
A71: Impervious Removal and Impervious to Landscaping
A72: * | B72: CSS Sizer performance was used as a reference, where depending on Curve Number (soil type and land cover) runoff volume and peak
B73: flow reduction varies between 56% (Grass/Lawn on D soil with CN of 80) and 100% (A soils with CN of 39) for the 2-year 24-hour event.
B74: Assuming typical year performance would be higher than during the 2-year event, runoff removal is assumed to be 100% on all
B75: soil types with the caveat that projects will replace impervious with uncompacted soil to a depth that can fully self-mitigate
B76: during the typcial year.
A77: * | B77: CSS Sizer performance was used as a reference for peak flow reduction, where peak flow reduction during the 2-year 24-hour event
B78: ranged between 67% and 100%. A flat 75% reduction in peak fow during the 5-year 3-hour event is used in this calculator pending
B79: better monitoring information. This should not impact facility sizing for the grant program as any facility exceeding 25% reduction
B80: during the LOS event is considered complying with requirements. Peak flow performance during the LOS event should be cross
B81: referenced against Mira's H&H models.
A83: Design Guidance
A84: * | B84: Infiltration trenches within C or D soils are not recommended and performance is not provided.
A85: * | B85: Rain gardens and permeable pavement on C or D soils will require an elevated underdrain to meet the expected performance.
A86: * | B86: Cisterns with indoor reuse assumed a constant daily re-use rate. If daily re-use rates vary, calculate a constant effective daily re-use rate.
A87: * | B87: Cisterns with irrigation and detention use some storage for detention (water drains via a low-flow orifice) and some storage for
B88: retention (water is stored until used for irrigation). Maximum summer irrigation demand in gallons per day is scaled
B89: based on SF climate to determine annual performance.

Sheet #lists (hidden)
A1: CSD Basin | B1: Watershed | D1: CSD Basin | E1: Watershed | F1: Minor Watershed | H1: BMPs | I1: Soils | K1: Sizing Factors | L1: gal/sf | N1: Cistern Sizing (gallons/sf) Indoor RWH | O1: Drawdown | Q1: RWH Outdoor Cistern Sizes (gal/sf) | R1: Re-use (gpd/sf) | S1: Dead Storage (%) | U1: Storm Service
A2: Sea Cliff | B2: Richmond | D2: Sea Cliff | E2: Richmond | F2: 20-A | H2: Bioretention/Rain Garden | I2: A | K2: 0.02 | L2: 0.125 | N2: 0.02295684114 | O2: 24 | Q2: 0.02295684114 | R2: 0.01 | S2: 0 | U2: MS4
A3: Mile Rock | B3: Sunset | D3: Mile Rock | E3: Richmond | F3: 20-B | H3: Infiltration Trench/Gallery | I3: B | K3: 0.04 | L3: 0.25 | N3: 0.04591368228 | O3: 36 | Q3: 0.1147842057 | R3: 0.05 | S3: 0.5 | U3: CSS
A4: Ocean Beach | B4: Lake Merced | D4: Mile Rock | E4: Richmond | F4: 20-C | H4: Perm Pavement | I4: C/D | K4: 0.06 | L4: 0.375 | N4: 0.06887052342 | O4: 48 | Q4: 0.2295684114 | R4: 0.1 | S4: 0.6
A5: North Shore | B5: North Shore | D5: Mile Rock | E5: Richmond | F5: 20-D | H5: Cistern - Indoor Reuse | I5: Lined | K5: 0.08 | L5: 0.5 | N5: 0.09182736455 | O5: 72 | Q5: 0.3443526171 | R5: 0.2 | S5: 0.8
A6: Central | B6: Channel | D6: Ocean Beach | E6: Sunset | F6: 40-A | H6: Cistern - Irrigation and Detention | I6: N/A | K6: 0.1 | L6: 1 | N6: 0.1147842057 | O6: 96 | Q6: 0.4591368228 | R6: 0.3 | S6: 1
A7: Southeast | B7: Islais Creek | D7: Ocean Beach | E7: Sunset | F7: 40-B | H7: Impervious Removal | K7: 0.25 | L7: 1.25 | N7: 0.1377410468 | O7: 120 | Q7: 0.6887052342 | R7: 0.4
B8: Sunnydale | D8: Ocean Beach | E8: Sunset | F8: 40-C | H8: Impervious to Landscaping | K8: 0.8 | L8: 1.5 | N8: 0.160697888 | O8: 180 | Q8: 0.9182736455 | R8: 0.5
D9: Ocean Beach | E9: Sunset | F9: 40-D | H9: Vegetated Roof | K9: 1 | L9: 2 | N9: 0.1836547291 | O9: 240 | Q9: 1.147842057 | R9: 0.6
D10: Ocean Beach | E10: Sunset | F10: 40-E | N10: 0.2066115702 | O10: 360 | Q10: 1.377410468 | R10: 0.7
D11: Ocean Beach | E11: Sunset | F11: 40-F | K11: 0.25 | N11: 0.2295684114 | O11: 480 | Q11: 1.60697888 | R11: 0.8
D12: Ocean Beach | E12: Sunset | F12: 40-G | K12: 1 | N12: 0.2525252525 | Q12: 1.836547291 | R12: 0.9
D13: Ocean Beach | E13: Sunset | F13: 40-H | H13: Excluded BMPs | N13: 0.2754820937 | Q13: 2.066115702 | R13: 1
D14: Ocean Beach | E14: Sunset | F14: 40-J | H14: Blue Roof | N14: 0.2984389348
D15: Ocean Beach | E15: Sunset | F15: 40-K | N15: 0.3213957759
D16: Ocean Beach | E16: Sunset | F16: 40-L | H16: Lined or Infiltrative | N16: 0.3443526171
D17: Ocean Beach | E17: Sunset | F17: 40-M | H17: Lined | N17: 0.3673094582
D18: Ocean Beach | E18: Sunset | F18: 40-N | H18: Infiltrative | N18: 0.3902662994
D19: Ocean Beach | E19: Lake Merced | F19: 60-A | N19: 0.4132231405
D20: Ocean Beach | E20: Lake Merced | F20: 60-B | N20: 0.4361799816
D21: Ocean Beach | E21: Lake Merced | F21: 60-C | N21: 0.4591368228
D22: Ocean Beach | E22: Lake Merced | F22: 60-D | N22: 0.4820936639
D23: Ocean Beach | E23: Lake Merced | F23: 60-E | N23: 0.5050505051
D24: North Shore | E24: North Shore | F24: 10-A | N24: 0.5280073462
D25: North Shore | E25: North Shore | F25: 10-B | N25: 0.5509641873
D26: North Shore | E26: North Shore | F26: 10-C | N26: 0.5739210285
D27: North Shore | E27: North Shore | F27: 10-D | N27: 0.5968778696
D28: North Shore | E28: North Shore | F28: 10-E | N28: 0.6198347107
D29: North Shore | E29: North Shore | F29: 10-F | N29: 0.6427915519
D30: North Shore | E30: North Shore | F30: 10-G | N30: 0.665748393
D31: North Shore | E31: North Shore | F31: 10-H | N31: 0.6887052342
D32: North Shore | E32: North Shore | F32: 10-J | N32: 0.7116620753
D33: Central | E33: Channel | F33: 30-A | N33: 0.7346189164
D34: Central | E34: Channel | F34: 30-B | N34: 0.7575757576
D35: Central | E35: Channel | F35: 30-C | N35: 0.7805325987
D36: Central | E36: Channel | F36: 30-D | N36: 0.8034894399
D37: Central | E37: Channel | F37: 30-E | N37: 0.826446281
D38: Central | E38: Channel | F38: 30-F | N38: 0.8494031221
D39: Central | E39: Channel | F39: 30-G | N39: 0.8723599633
D40: Central | E40: Channel | F40: 30-H | N40: 0.8953168044
D41: Central | E41: Channel | F41: 30-J | N41: 0.9182736455
D42: Central | E42: Channel | F42: 30-K | N42: 0.9412304867
D43: Central | E43: Channel | F43: 30-L | N43: 0.9641873278
D44: Central | E44: Channel | F44: 30-M | N44: 0.987144169
D45: Central | E45: Channel | F45: 30-N | N45: 1.01010101
D46: Central | E46: Islais Creek | F46: 50-A | N46: 1.033057851
D47: Central | E47: Islais Creek | F47: 50-B | N47: 1.056014692
D48: Central | E48: Islais Creek | F48: 50-C | N48: 1.078971534
D49: Central | E49: Islais Creek | F49: 50-D | N49: 1.101928375
D50: Central | E50: Islais Creek | F50: 50-E | N50: 1.124885216
D51: Central | E51: Islais Creek | F51: 50-F | N51: 1.147842057
D52: Central/Southeast | E52: Islais Creek | F52: 50-G
D53: Central | E53: Islais Creek | F53: 50-H
D54: Central | E54: Islais Creek | F54: 50-J
D55: Central | E55: Islais Creek | F55: 50-K
D56: Central | E56: Islais Creek | F56: 50-L
D57: Central | E57: Islais Creek | F57: 50-M
D58: Central | E58: Islais Creek | F58: 50-N
D59: Central | E59: Islais Creek | F59: 50-P
D60: Central | E60: Islais Creek | F60: 50-Q
D61: Southeast | E61: Islais Creek | F61: 70-A
D62: Southeast | E62: Islais Creek | F62: 70-B
D63: Southeast | E63: Islais Creek | F63: 70-C
D64: Southeast | E64: Islais Creek | F64: 70-D
D65: Southeast | E65: Islais Creek | F65: 70-E
D66: Southeast | E66: Islais Creek | F66: 70-H
D67: Southeast | E67: Sunnydale | F67: 90-D
D68: Southeast | E68: Sunnydale | F68: 90-G

Sheet #data (hidden)
A1: Rebate Calculator Performance | I1: GI Spatial Performance Estimates | R1: Parcels | X1: RWH Performance, Indoor Re-use. | AE1: RWH Performance, Outdoor Re-use. Using 1-inch orifice.
A2: Data from UWA_Incentives_Rebate_Calculator_v8-UpdatedPerf.xlsm | I2: Used for planning purposes in instances where the proposed GI project has not yet been modeled individually in ICM | R2: Parcel spaces and slashes removed for look-up
A3: P:\1061 Wet Weather Rate Analysis\400 Technical\Advanced UWA Rebate Calculator | I3: P:\1067 SSIP Watershed Mgmt TO84\400 Technical\410 H1 - GI Redefinition\416 Performance | R3: Parcel numbers stored as strings (characters) to preserve leading 0's
A4: See P:\1067 SSIP Watershed Mgmt TO84\400 Technical\470 H3 - Grant Program\8_Program Performance Basis for notes | J4: Spatial Performance Estimates
A5: BMP | B5: Soil | C5: Metric | D5: Performance Metric | E5: Sizing Factor | F5: Performance | J5: Minor Watershed | K5: CSD Basin | L5: Total CSD Volume Reduction (MG/ac/yr) | M5: CSD Volume Reduction at Beaches (MG/ac/yr) | N5: Flood Volume Reduction (MG/acre/LOS) | O5: CSD Priority | P5: Flood Reduction Priority | R5: APN | S5: MAJOR_ID | T5: MINOR_ID | U5: Watershed | V5: Soil | X5: BMP | Y5: Design Storm | Z5: Cistern Sizing (gallons/sf) | AA5: Re-use (gpd/sf) | AB5: 1-acre runoff reduction | AC5: 1-acre Peak Flow Reduction (LOS event only) | AE5: BMP | AF5: Design Storm | AG5: Cistern Sizing (gallons/sf) | AH5: Re-use (gpd/sf) | AI5: % Retention (dead storage) | AJ5: Orifice (inch) | AK5: 1-acre runoff reduction | AL5: 1-acre Peak Flow Reduction (LOS event only) | AM5: 1-acre runoff captured (Annual only)
A6: Bioretention/Rain Garden | B6: A | C6: Captured | D6: Annual | E6: 0.02 | F6: 0.6037735849 | I6: Richmond | J6: 20-A | K6: Sea Cliff | L6: 0.22199023 | M6: 0.09735371 | N6: 0.00329294 | O6: =IF(L6>0.2,"high",IF(L6>0.1,"medium","low")) -> high | P6: =IF(N6>0.0035,"high",IF(N6>0.001,"medium","low")) -> medium | R6: 0900003 | S6: NA | T6: NA | U6: NA | V6: A | X6: RWH Indoor | Y6: Annual | Z6: 0.02295684114 | AA6: 0.001148 | AB6: 0.02150092939 | AE6: RWH Outdoor | AF6: Annual | AG6: 0.02295684114 | AH6: 0 | AI6: 0 | AJ6: 1 | AK6: 0 | AM6: 0.5707221733
A7: Bioretention/Rain Garden | B7: A | C7: Captured | D7: Annual | E7: 0.04 | F7: 0.85 | J7: 20-B | K7: Mile Rock | L7: 0.24900201 | M7: 0.150214046 | N7: 0.00200364 | O7: =IF(L7>0.2,"high",IF(L7>0.1,"medium","low")) -> high | P7: =IF(N7>0.0035,"high",IF(N7>0.001,"medium","low")) -> medium | R7: 0001001 | S7: NA | T7: NA | U7: NA | X7: RWH Indoor | Y7: Annual | Z7: 0.02295684114 | AA7: 0.00153 | AB7: 0.02622335574 | AE7: RWH Outdoor | AF7: Annual | AG7: 0.1147842057 | AH7: 0 | AI7: 0 | AJ7: 1 | AK7: 0 | AM7: 0.8188797356
A8: Bioretention/Rain Garden | B8: A | C8: Captured | D8: Annual | E8: 0.06 | F8: 0.9811320755 | J8: 20-C | K8: Mile Rock | L8: 0.217932176 | M8: 0.098710082 | N8: 0 | O8: high | P8: low | R8: 0002001 | S8: NA | T8: NA | U8: NA | X8: RWH Indoor | Y8: Annual | Z8: 0.02295684114 | AA8: 0.002296 | AB8: 0.03389035381 | AE8: RWH Outdoor | AF8: Annual | AG8: 0.2295684114 | AH8: 0 | AI8: 0 | AJ8: 1 | AK8: 0 | AM8: 0.8864996627
A9: Bioretention/Rain Garden | B9: A | C9: Captured | D9: Annual | E9: 0.08 | F9: 1 | J9: 20-D | K9: Mile Rock | L9: 0.212444268 | M9: 0.086609138 | N9: 0.00486522 | O9: high | P9: high | R9: 0405007 | S9: NA | T9: NA | U9: NA | V9: A | X9: RWH Indoor | Y9: Annual | Z9: 0.02295684114 | AA9: 0.003061 | AB9: 0.04011284501 | AE9: RWH Outdoor | AF9: Annual | AG9: 0.3443526171 | AH9: 0 | AI9: 0 | AJ9: 1 | AK9: 0 | AM9: 0.924584591
A10: Bioretention/Rain Garden | B10: A | C10: Captured | D10: Annual | E10: 0.1 | F10: 1 | I10: Sunset | J10: 40-A | K10: Ocean Beach | L10: 0.23993256 | M10: 0.23566981 | N10: 0.0045277 | O10: high | P10: high | R10: 0409002 | S10: NA | T10: NA | U10: NA | V10: A | X10: RWH Indoor | Y10: Annual | Z10: 0.02295684114 | AA10: 0.004591 | AB10: 0.05016883524 | AE10: RWH Outdoor | AF10: Annual | AG10: 0.4591368228 | AH10: 0 | AI10: 0 | AJ10: 1 | AK10: 0 | AM10: 0.9473234099
A11: Bioretention/Rain Garden | B11: A | C11: Reduced | D11: Annual | E11: 0.02 | F11: 0.6037735849 | J11: 40-B | K11: Ocean Beach | L11: 0.25 | M11: 0.257980656 | N11: 0.00498598 | O11: high | P11: high | R11: 1300001 | S11: NA | T11: NA | U11: NA | V11: A | X11: RWH Indoor | Y11: Annual | Z11: 0.02295684114 | AA11: 0.005739 | AB11: 0.05650244234 | AE11: RWH Outdoor | AF11: Annual | AG11: 0.6887052342 | AH11: 0 | AI11: 0 | AJ11: 1 | AK11: 0 | AM11: 0.9705801731
A12: Bioretention/Rain Garden | B12: A | C12: Reduced | D12: Annual | E12: 0.04 | F12: 0.85 | J12: 40-C | K12: Ocean Beach | L12: 0.236316846 | M12: 0.235157028 | N12: 0.006 | O12: high | P12: high | R12: 0405004 | S12: NA | T12: NA | U12: NA | V12: C\D | X12: RWH Indoor | Y12: Annual | Z12: 0.02295684114 | AA12: 0.007652 | AB12: 0.06550283139 | AE12: RWH Outdoor | AF12: Annual | AG12: 0.9182736455 | AH12: 0 | AI12: 0 | AJ12: 1 | AK12: 0 | AM12: 0.9847421834
A13: Bioretention/Rain Garden | B13: A | C13: Reduced | D13: Annual | E13: 0.06 | F13: 0.9811320755 | J13: 40-D | K13: Ocean Beach | L13: 0.23982849 | M13: 0.238406204 | N13: 0.00029462 | O13: high | P13: low | R13: 0409003 | S13: NA | T13: NA | U13: NA | X13: RWH Indoor | Y13: Annual | Z13: 0.02295684114 | AA13: 0.011478 | AB13: 0.08005901614 | AE13: RWH Outdoor | AF13: Annual | AG13: 1.147842057 | AH13: 0 | AI13: 0 | AJ13: 1 | AK13: 0 | AM13: 0.989495474
A14: Bioretention/Rain Garden | B14: A | C14: Reduced | D14: Annual | E14: 0.08 | F14: 1 | J14: 40-E | K14: Ocean Beach | L14: 0.220102 | M14: 0.218888948 | N14: 0.00801996 | O14: high | P14: high | R14: 0409005 | S14: NA | T14: NA | U14: NA | X14: RWH Indoor | Y14: Annual | Z14: 0.02295684114 | AA14: 0.015305 | AB14: 0.09217065079 | AE14: RWH Outdoor | AF14: Annual | AG14: 1.377410468 | AH14: 0 | AI14: 0 | AJ14: 1 | AK14: 0 | AM14: 0.992973777
A15: Bioretention/Rain Garden | B15: A | C15: Reduced | D15: Annual | E15: 0.1 | F15: 1 | J15: 40-F | K15: Ocean Beach | L15: 0.222490802 | M15: 0.221353474 | N15: =N14 -> 0.00801996 | O15: high | P15: high | R15: 0410001 | S15: NA | T15: NA | U15: NA | X15: RWH Indoor | Y15: Annual | Z15: 0.02295684114 | AA15: 0.022957 | AB15: 0.1121159574 | AE15: RWH Outdoor | AF15: Annual | AG15: 1.60697888 | AH15: 0 | AI15: 0 | AJ15: 1 | AK15: 0 | AM15: 0.9959899136
A16: Bioretention/Rain Garden | B16: B | C16: Captured | D16: Annual | E16: 0.02 | F16: 0.4716981132 | J16: 40-G | K16: Ocean Beach | L16: 0.19596505 | M16: 0.194900546 | N16: 0.0033204 | O16: medium | P16: medium | R16: 0410A001 | S16: NA | T16: NA | U16: NA | X16: RWH Indoor | Y16: Annual | Z16: 0.04591368228 | AA16: 0.002296 | AB16: 0.04139067802 | AE16: RWH Outdoor | AF16: Annual | AG16: 1.836547291 | AH16: 0 | AI16: 0 | AJ16: 1 | AK16: 0 | AM16: 0.9968960716
A17: Bioretention/Rain Garden | B17: B | C17: Captured | D17: Annual | E17: 0.04 | F17: 0.75 | J17: 40-H | K17: Ocean Beach | L17: 0.220611378 | M17: 0.219324644 | N17: 0.006 | O17: high | P17: high | R17: 1313015 | S17: NA | T17: NA | U17: NA | V17: C\D | X17: RWH Indoor | Y17: Annual | Z17: 0.04591368228 | AA17: 0.003061 | AB17: 0.05022439319 | AE17: RWH Outdoor | AF17: Annual | AG17: 2.066115702 | AH17: 0 | AI17: 0 | AJ17: 1 | AK17: 0 | AM17: 0.9968959359
A18: Bioretention/Rain Garden | B18: B | C18: Captured | D18: Annual | E18: 0.06 | F18: 0.95 | J18: 40-J | K18: Ocean Beach | L18: 0.220024276 | M18: 0.21882976 | N18: 0 | O18: high | P18: low | R18: 1313021 | S18: NA | T18: NA | U18: NA | X18: RWH Indoor | Y18: Annual | Z18: 0.04591368228 | AA18: 0.004591 | AB18: 0.06450278816 | AE18: RWH Outdoor | AF18: Annual | AG18: 0.02295684114 | AH18: 0 | AI18: 0.5 | AJ18: 1 | AK18: 0 | AM18: 0.4495551888
A19: Bioretention/Rain Garden | B19: B | C19: Captured | D19: Annual | E19: 0.08 | F19: 0.9811320755 | J19: 40-K | K19: Ocean Beach | L19: 0.230419004 | M19: 0.2292496 | N19: 0.00103304 | O19: high | P19: medium | R19: 1313030 | S19: NA | T19: NA | U19: NA | V19: A | X19: RWH Indoor | Y19: Annual | Z19: 0.04591368228 | AA19: 0.006122 | AB19: 0.07639219098 | AE19: RWH Outdoor | AF19: Annual | AG19: 0.1147842057 | AH19: 0 | AI19: 0.5 | AJ19: 1 | AK19: 0 | AM19: 0.6789381102
A20: Bioretention/Rain Garden | B20: B | C20: Captured | D20: Annual | E20: 0.1 | F20: 1 | J20: 40-L | K20: Ocean Beach | L20: 0.209916264 | M20: 0.20872108 | N20: 0.00185308 | O20: high | P20: medium | R20: 1939001 | S20: NA | T20: NA | U20: NA | X20: RWH Indoor | Y20: Annual | Z20: 0.04591368228 | AA20: 0.009183 | AB20: 0.09517078047 | AE20: RWH Outdoor | AF20: Annual | AG20: 0.2295684114 | AH20: 0 | AI20: 0.5 | AJ20: 1 | AK20: 0 | AM20: 0.7551483297
A21: Bioretention/Rain Garden | B21: B | C21: Reduced | D21: Annual | E21: 0.02 | F21: 0.4716981132 | J21: 40-M | K21: Ocean Beach | L21: 0.206562964 | M21: 0.205345064 | N21: 0.00101196 | O21: high | P21: medium | R21: 1939002 | S21: NA | T21: NA | U21: NA | X21: RWH Indoor | Y21: Annual | Z21: 0.04591368228 | AA21: 0.011478 | AB21: 0.1065601617 | AE21: RWH Outdoor | AF21: Annual | AG21: 0.3443526171 | AH21: 0 | AI21: 0.5 | AJ21: 1 | AK21: 0 | AM21: 0.8010592469
A22: Bioretention/Rain Garden | B22: B | C22: Reduced | D22: Annual | E22: 0.04 | F22: 0.75 | J22: 40-N | K22: Ocean Beach | L22: 0.181747692 | M22: 0.18081604 | N22: 0.00569412 | O22: medium | P22: high | R22: 1306010 | S22: NA | T22: NA | U22: NA | V22: B | X22: RWH Indoor | Y22: Annual | Z22: 0.04591368228 | AA22: 0.015305 | AB22: 0.123005317 | AE22: RWH Outdoor | AF22: Annual | AG22: 0.4591368228 | AH22: 0 | AI22: 0.5 | AJ22: 1 | AK22: 0 | AM22: 0.8380701896
A23: Bioretention/Rain Garden | B23: B | C23: Reduced | D23: Annual | E23: 0.06 | F23: 0.95 | I23: Lake Merced | J23: 60-A | K23: Ocean Beach | L23: 0.14455421 | M23: 0.143022285 | N23: 0.0004701 | O23: medium | P23: low | R23: 1306011 | S23: NA | T23: NA | U23: NA | V23: B | X23: RWH Indoor | Y23: Annual | Z23: 0.04591368228 | AA23: 0.022957 | AB23: 0.1496175784 | AE23: RWH Outdoor | AF23: Annual | AG23: 0.6887052342 | AH23: 0 | AI23: 0.5 | AJ23: 1 | AK23: 0 | AM23: 0.8895640763
A24: Bioretention/Rain Garden | B24: B | C24: Reduced | D24: Annual | E24: 0.08 | F24: 0.9811320755 | J24: 60-B | K24: Ocean Beach | L24: 0.167409378 | M24: 0.166174834 | N24: 0.00172382 | O24: medium | P24: medium | R24: 1306012 | S24: NA | T24: NA | U24: NA | V24: B | X24: RWH Indoor | Y24: Annual | Z24: 0.04591368228 | AA24: 0.030609 | AB24: 0.1712851817 | AE24: RWH Outdoor | AF24: Annual | AG24: 0.9182736455 | AH24: 0 | AI24: 0.5 | AJ24: 1 | AK24: 0 | AM24: 0.9228048251
A25: Bioretention/Rain Garden | B25: B | C25: Reduced | D25: Annual | E25: 0.1 | F25: 1 | J25: 60-C | K25: Ocean Beach | L25: 0.21152482 | M25: 0.210603528 | N25: 0.0075 | O25: high | P25: high | R25: 1306013 | S25: NA | T25: NA | U25: NA | V25: B | X25: RWH Indoor | Y25: Annual | Z25: 0.04591368228 | AA25: 0.045914 | AB25: 0.2058977889 | AE25: RWH Outdoor | AF25: Annual | AG25: 1.147842057 | AH25: 0 | AI25: 0.5 | AJ25: 1 | AK25: 0 | AM25: 0.945638967
A26: Bioretention/Rain Garden | B26: C/D | C26: Captured | D26: Annual | E26: 0.02 | F26: 0.5648677424 | J26: 60-D | K26: Ocean Beach | L26: 0.213671568 | M26: 0.212652278 | N26: 0.00386188 | O26: high | P26: high | R26: 1306014 | S26: NA | T26: NA | U26: NA | V26: B | X26: RWH Indoor | Y26: Annual | Z26: 0.06887052342 | AA26: 0.003444 | AB26: 0.06039149934 | AE26: RWH Outdoor | AF26: Annual | AG26: 1.377410468 | AH26: 0 | AI26: 0.5 | AJ26: 1 | AK26: 0 | AM26: 0.9584111805
A27: Bioretention/Rain Garden | B27: C/D | C27: Captured | D27: Annual | E27: 0.04 | F27: 0.85 | J27: 60-E | K27: Ocean Beach | L27: 0.171474562 | M27: 0.170507804 | N27: 0.00101766 | O27: medium | P27: medium | R27: 1306015 | S27: NA | T27: NA | U27: NA | V27: B | X27: RWH Indoor | Y27: Annual | Z27: 0.06887052342 | AA27: 0.004591 | AB27: 0.07316982947 | AE27: RWH Outdoor | AF27: Annual | AG27: 1.60697888 | AH27: 0 | AI27: 0.5 | AJ27: 1 | AK27: 0 | AM27: 0.9667931612
A28: Bioretention/Rain Garden | B28: C/D | C28: Captured | D28: Annual | E28: 0.06 | F28: 0.9830168591 | I28: North Shore | J28: 10-A | K28: North Shore | M28: 0 | O28: low | P28: low | R28: 1306016 | S28: NA | T28: NA | U28: NA | V28: B | X28: RWH Indoor | Y28: Annual | Z28: 0.06887052342 | AA28: 0.006887 | AB28: 0.09405962133 | AE28: RWH Outdoor | AF28: Annual | AG28: 1.836547291 | AH28: 0 | AI28: 0.5 | AJ28: 1 | AK28: 0 | AM28: 0.9764198076
A29: Bioretention/Rain Garden | B29: C/D | C29: Captured | D29: Annual | E29: 0.08 | F29: 0.9992971068 | J29: 10-B | K29: North Shore | L29: 0.11 | M29: 0 | N29: 0.00171936 | O29: medium | P29: medium | R29: 1306017 | S29: NA | T29: NA | U29: NA | V29: B | X29: RWH Indoor | Y29: Annual | Z29: 0.06887052342 | AA29: 0.009183 | AB29: 0.1108936823 | AE29: RWH Outdoor | AF29: Annual | AG29: 2.066115702 | AH29: 0 | AI29: 0.5 | AJ29: 1 | AK29: 0 | AM29: 0.9821737767
A30: Bioretention/Rain Garden | B30: C/D | C30: Captured | D30: Annual | E30: 0.1 | F30: 1 | J30: 10-C | K30: North Shore | L30: 0.11 | M30: 0 | N30: 0.0007114 | O30: medium | P30: low | R30: 1306018 | S30: NA | T30: NA | U30: NA | V30: B | X30: RWH Indoor | Y30: Annual | Z30: 0.06887052342 | AA30: 0.013774 | AB30: 0.1374503858 | AE30: RWH Outdoor | AF30: Annual | AG30: 0.02295684114 | AH30: 0 | AI30: 0.6 | AJ30: 1 | AK30: 0 | AM30: 0.3828591511
A31: Bioretention/Rain Garden | B31: C/D | C31: Reduced | D31: Annual | E31: 0.02 | F31: 0.2265797009 | J31: 10-D | K31: North Shore | L31: 0.11 | M31: 0 | N31: 0.0007114 | O31: medium | P31: low | R31: 1307001B | S31: NA | T31: NA | U31: NA | V31: C\D | X31: RWH Indoor | Y31: Annual | Z31: 0.06887052342 | AA31: 0.017218 | AB31: 0.1535621934 | AE31: RWH Outdoor | AF31: Annual | AG31: 0.1147842057 | AH31: 0 | AI31: 0.6 | AJ31: 1 | AK31: 0 | AM31: 0.6422411417
A32: Bioretention/Rain Garden | B32: C/D | C32: Reduced | D32: Annual | E32: 0.04 | F32: 0.5962808679 | J32: 10-E | K32: North Shore | L32: 0.096 | M32: 0 | N32: 0.0009038166667 | O32: low | P32: low | R32: 1307001L | S32: NA | T32: NA | U32: NA | V32: B | X32: RWH Indoor | Y32: Annual | Z32: 0.06887052342 | AA32: 0.022957 | AB32: 0.1764520717 | AE32: RWH Outdoor | AF32: Annual | AG32: 0.2295684114 | AH32: 0 | AI32: 0.6 | AJ32: 1 | AK32: 0 | AM32: 0.704171452
A33: Bioretention/Rain Garden | B33: C/D | C33: Reduced | D33: Annual | E33: 0.06 | F33: 0.8408567028 | J33: 10-F | K33: North Shore | L33: 0.096 | M33: 0 | N33: 0.0009038166667 | O33: low | P33: low | R33: 1307001S | S33: NA | T33: NA | U33: NA | V33: B | X33: RWH Indoor | Y33: Annual | Z33: 0.06887052342 | AA33: 0.034435 | AB33: 0.2134536711 | AE33: RWH Outdoor | AF33: Annual | AG33: 0.3443526171 | AH33: 0 | AI33: 0.6 | AJ33: 1 | AK33: 0 | AM33: 0.7546097957
A34: Bioretention/Rain Garden | B34: C/D | C34: Reduced | D34: Annual | E34: 0.08 | F34: 0.9064221701 | J34: 10-G | K34: North Shore | L34: 0.108 | M34: 0 | N34: 0.002374 | O34: medium | P34: medium | R34: 1313008 | S34: NA | T34: NA | U34: NA | X34: RWH Indoor | Y34: Annual | Z34: 0.06887052342 | AA34: 0.045914 | AB34: 0.2429549463 | AE34: RWH Outdoor | AF34: Annual | AG34: 0.4591368228 | AH34: 0 | AI34: 0.6 | AJ34: 1 | AK34: 0 | AM34: 0.7900042075
A35: Bioretention/Rain Garden | B35: C/D | C35: Reduced | D35: Annual | E35: 0.1 | F35: 0.9417012084 | J35: 10-H | K35: North Shore | L35: 0.108 | M35: 0 | N35: 0.00212272 | O35: medium | P35: medium | R35: 1313016 | S35: NA | T35: NA | U35: NA | X35: RWH Indoor | Y35: Annual | Z35: 0.06887052342 | AA35: 0.068871 | AB35: 0.2896236302 | AE35: RWH Outdoor | AF35: Annual | AG35: 0.6887052342 | AH35: 0 | AI35: 0.6 | AJ35: 1 | AK35: 0 | AM35: 0.8495160932
A36: Bioretention/Rain Garden | B36: Lined | C36: Captured | D36: Annual | E36: 0.02 | F36: 0.47 | J36: 10-J | K36: North Shore | L36: 0.104 | M36: 0 | N36: 0.00315252 | O36: medium | P36: medium | R36: 4382004 | S36: NA | T36: NA | U36: NA | V36: C\D | X36: RWH Indoor | Y36: Annual | Z36: 0.09182736455 | AA36: 0.004591 | AB36: 0.07872562517 | AE36: RWH Outdoor | AF36: Annual | AG36: 0.9182736455 | AH36: 0 | AI36: 0.6 | AJ36: 1 | AK36: 0 | AM36: 0.884991109
A37: Bioretention/Rain Garden | B37: Lined | C37: Captured | D37: Annual | E37: 0.04 | F37: 0.7 | I37: Channel | J37: 30-A | K37: Central | L37: 0.252 | M37: 0.252 | N37: 0.00751194 | O37: high | P37: high | R37: 4382003 | S37: NA | T37: NA | U37: NA | V37: C\D | X37: RWH Indoor | Y37: Annual | Z37: 0.09182736455 | AA37: 0.006122 | AB37: 0.09550412821 | AE37: RWH Outdoor | AF37: Annual | AG37: 1.147842057 | AH37: 0 | AI37: 0.6 | AJ37: 1 | AK37: 0 | AM37: 0.9159133881
A38: Bioretention/Rain Garden | B38: Lined | C38: Captured | D38: Annual | E38: 0.06 | F38: 0.9 | J38: 30-B | K38: Central | L38: 0.201 | M38: 0.201 | N38: 0.00738124 | O38: high | P38: high | R38: 4304002 | S38: NA | T38: NA | U38: NA | V38: C\D | X38: RWH Indoor | Y38: Annual | Z38: 0.09182736455 | AA38: 0.009183 | AB38: 0.1222275056 | AE38: RWH Outdoor | AF38: Annual | AG38: 1.377410468 | AH38: 0 | AI38: 0.6 | AJ38: 1 | AK38: 0 | AM38: 0.9383396611
A39: Bioretention/Rain Garden | B39: Lined | C39: Captured | D39: Annual | E39: 0.08 | F39: 0.98 | J39: 30-C | K39: Central | L39: 0.139 | M39: 0.139 | N39: 0.003946 | O39: medium | P39: high | R39: 4349003A | S39: NA | T39: NA | U39: NA | V39: C\D | X39: RWH Indoor | Y39: Annual | Z39: 0.09182736455 | AA39: 0.012244 | AB39: 0.143672877 | AE39: RWH Outdoor | AF39: Annual | AG39: 1.60697888 | AH39: 0 | AI39: 0.6 | AJ39: 1 | AK39: 0 | AM39: 0.9484106773
A40: Bioretention/Rain Garden | B40: Lined | C40: Captured | D40: Annual | E40: 0.1 | F40: 1 | J40: 30-D | K40: Central | L40: 0.141 | M40: 0.141 | N40: 0.0035238 | O40: medium | P40: high | R40: 4572010 | S40: NA | T40: NA | U40: NA | X40: RWH Indoor | Y40: Annual | Z40: 0.09182736455 | AA40: 0.018365 | AB40: 0.1775632308 | AE40: RWH Outdoor | AF40: Annual | AG40: 1.836547291 | AH40: 0 | AI40: 0.6 | AJ40: 1 | AK40: 0 | AM40: 0.9596620943
A41: Bioretention/Rain Garden | B41: Lined | C41: Reduced | D41: Annual | E41: 0.02 | F41: 0.03 | J41: 30-E | K41: Central | L41: 0.23 | M41: 0.23 | N41: 0.0040801 | O41: high | P41: high | R41: 4580002 | S41: NA | T41: NA | U41: NA | V41: B | X41: RWH Indoor | Y41: Annual | Z41: 0.09182736455 | AA41: 0.022957 | AB41: 0.1978974431 | AE41: RWH Outdoor | AF41: Annual | AG41: 2.066115702 | AH41: 0 | AI41: 0.6 | AJ41: 1 | AK41: 0 | AM41: 0.9655854035
A42: Bioretention/Rain Garden | B42: Lined | C42: Reduced | D42: Annual | E42: 0.04 | F42: 0.06 | J42: 30-F | K42: Central | L42: 0.14 | M42: 0.14 | N42: 0.00391078 | O42: medium | P42: high | R42: 4586010 | S42: NA | T42: NA | U42: NA | V42: C\D | X42: RWH Indoor | Y42: Annual | Z42: 0.09182736455 | AA42: 0.030609 | AB42: 0.2267875808 | AE42: RWH Outdoor | AF42: Annual | AG42: 0.02295684114 | AH42: 0 | AI42: 0.8 | AJ42: 1 | AK42: 0 | AM42: 0.2074444962
A43: Bioretention/Rain Garden | B43: Lined | C43: Reduced | D43: Annual | E43: 0.06 | F43: 0.09 | J43: 30-G | K43: Central | L43: 0.196 | M43: 0.196 | N43: 0.00459278 | O43: medium | P43: high | R43: 4591A079 | S43: NA | T43: NA | U43: NA | V43: C\D | X43: RWH Indoor | Y43: Annual | Z43: 0.09182736455 | AA43: 0.045914 | AB43: 0.2728451272 | AE43: RWH Outdoor | AF43: Annual | AG43: 0.1147842057 | AH43: 0 | AI43: 0.8 | AJ43: 1 | AK43: 0 | AM43: 0.5216155901
A44: Bioretention/Rain Garden | B44: Lined | C44: Reduced | D44: Annual | E44: 0.08 | F44: 0.12 | J44: 30-H | K44: Central | L44: 0.25 | M44: 0.25 | N44: 0.00584788 | O44: high | P44: high | R44: 4597025 | S44: NA | T44: NA | U44: NA | V44: C\D | X44: RWH Indoor | Y44: Annual | Z44: 0.09182736455 | AA44: 0.061218 | AB44: 0.3091800311 | AE44: RWH Outdoor | AF44: Annual | AG44: 0.2295684114 | AH44: 0 | AI44: 0.8 | AJ44: 1 | AK44: 0 | AM44: 0.5541472498
A45: Bioretention/Rain Garden | B45: Lined | C45: Reduced | D45: Annual | E45: 0.1 | F45: 0.15 | J45: 30-J | K45: Central | L45: 0.154 | M45: 0.154 | N45: 0.00567264 | O45: medium | P45: high | R45: 4597026 | S45: NA | T45: NA | U45: NA | V45: C\D | X45: RWH Indoor | Y45: Annual | Z45: 0.09182736455 | AA45: 0.091827 | AB45: 0.3649046621 | AE45: RWH Outdoor | AF45: Annual | AG45: 0.3443526171 | AH45: 0 | AI45: 0.8 | AJ45: 1 | AK45: 0 | AM45: 0.5936105429
A46: Infiltration Trench/Gallery | B46: A | C46: Captured | D46: Annual | E46: 0.02 | F46: 0.6981132075 | J46: 30-K | K46: Central | L46: 0.156 | M46: 0.156 | N46: 0.00454024 | O46: medium | P46: high | R46: 4604A002 | S46: NA | T46: NA | U46: NA | V46: B | X46: RWH Indoor | Y46: Annual | Z46: 0.1147842057 | AA46: 0.005739 | AB46: 0.09672640327 | AE46: RWH Outdoor | AF46: Annual | AG46: 0.4591368228 | AH46: 0 | AI46: 0.8 | AJ46: 1 | AK46: 0 | AM46: 0.6310794801
A47: Infiltration Trench/Gallery | B47: A | C47: Captured | D47: Annual | E47: 0.04 | F47: 0.9006289308 | J47: 30-L | K47: Central | L47: 0.24 | M47: 0.24 | N47: 0.00407108 | O47: high | P47: high | R47: 4621002 | S47: NA | T47: NA | U47: NA | V47: C\D | X47: RWH Indoor | Y47: Annual | Z47: 0.1147842057 | AA47: 0.007652 | AB47: 0.1170050576 | AE47: RWH Outdoor | AF47: Annual | AG47: 0.6887052342 | AH47: 0 | AI47: 0.8 | AJ47: 1 | AK47: 0 | AM47: 0.6860746682
A48: Infiltration Trench/Gallery | B48: A | C48: Captured | D48: Annual | E48: 0.06 | F48: 1 | J48: 30-M | K48: Central | L48: 0.141 | M48: 0.141 | N48: 0.0035238 | O48: medium | P48: high | R48: 4621011 | S48: NA | T48: NA | U48: NA | V48: C\D | X48: RWH Indoor | Y48: Annual | Z48: 0.1147842057 | AA48: 0.011478 | AB48: 0.1493397886 | AE48: RWH Outdoor | AF48: Annual | AG48: 0.9182736455 | AH48: 0 | AI48: 0.8 | AJ48: 1 | AK48: 0 | AM48: 0.7344377832
A49: Infiltration Trench/Gallery | B49: A | C49: Captured | D49: Annual | E49: 0.08 | F49: 1 | J49: 30-N | K49: Central | L49: 0.23 | M49: 0.23 | N49: 0.0040801 | O49: high | P49: high | R49: 4896001 | S49: NA | T49: NA | U49: NA | X49: RWH Indoor | Y49: Annual | Z49: 0.1147842057 | AA49: 0.015305 | AB49: 0.1752297966 | AE49: RWH Outdoor | AF49: Annual | AG49: 1.147842057 | AH49: 0 | AI49: 0.8 | AJ49: 1 | AK49: 0 | AM49: 0.7761542539
A50: Infiltration Trench/Gallery | B50: A | C50: Captured | D50: Annual | E50: 0.1 | F50: 1 | I50: Islais Creek | J50: 50-A | K50: Central | L50: 0.191907972 | M50: 0.191907972 | N50: 0.00473744 | O50: medium | P50: high | R50: 4926001 | S50: NA | T50: NA | U50: NA | X50: RWH Indoor | Y50: Annual | Z50: 0.1147842057 | AA50: 0.022957 | AB50: 0.2158426632 | AE50: RWH Outdoor | AF50: Annual | AG50: 1.377410468 | AH50: 0 | AI50: 0.8 | AJ50: 1 | AK50: 0 | AM50: 0.8067046269
A51: Infiltration Trench/Gallery | B51: A | C51: Reduced | D51: Annual | E51: 0.02 | F51: 0.6981132075 | J51: 50-B | K51: Central | L51: 0.1661579738 | M51: 0.1661579738 | N51: 0.00181194 | O51: medium | P51: medium | R51: 4927001 | S51: NA | T51: NA | U51: NA | X51: RWH Indoor | Y51: Annual | Z51: 0.1147842057 | AA51: 0.028696 | AB51: 0.2401770484 | AE51: RWH Outdoor | AF51: Annual | AG51: 1.60697888 | AH51: 0 | AI51: 0.8 | AJ51: 1 | AK51: 0 | AM51: 0.8393895929
A52: Infiltration Trench/Gallery | B52: A | C52: Reduced | D52: Annual | E52: 0.04 | F52: 0.9006289308 | J52: 50-C | K52: Central | L52: 0.2181208779 | M52: 0.2181208779 | N52: 0.00316894 | O52: high | P52: medium | R52: 4927003 | S52: NA | T52: NA | U52: NA | X52: RWH Indoor | Y52: Annual | Z52: 0.1147842057 | AA52: 0.038261 | AB52: 0.2742896341 | AE52: RWH Outdoor | AF52: Annual | AG52: 1.836547291 | AH52: 0 | AI52: 0.8 | AJ52: 1 | AK52: 0 | AM52: 0.8588300258
A53: Infiltration Trench/Gallery | B53: A | C53: Reduced | D53: Annual | E53: 0.06 | F53: 1 | J53: 50-D | K53: Central | L53: 0.212429935 | M53: 0.212429935 | N53: 0.00288648 | O53: high | P53: medium | R53: 4953003 | S53: NA | T53: NA | U53: NA | X53: RWH Indoor | Y53: Annual | Z53: 0.1147842057 | AA53: 0.057392 | AB53: 0.3282364104 | AE53: RWH Outdoor | AF53: Annual | AG53: 2.066115702 | AH53: 0 | AI53: 0.8 | AJ53: 1 | AK53: 0 | AM53: 0.8731946842
A54: Infiltration Trench/Gallery | B54: A | C54: Reduced | D54: Annual | E54: 0.08 | F54: 1 | J54: 50-E | K54: Central | L54: 0.1914583267 | M54: 0.1914583267 | N54: 0.0014365 | O54: medium | P54: medium | R54: 5005003 | S54: NA | T54: NA | U54: NA | X54: RWH Indoor | Y54: Annual | Z54: 0.1147842057 | AA54: 0.076523 | AB54: 0.3700715521 | AE54: RWH Outdoor | AF54: Annual | AG54: 0.02295684114 | AH54: 0 | AI54: 1 | AJ54: 1 | AK54: 0 | AM54: 0
A55: Infiltration Trench/Gallery | B55: A | C55: Reduced | D55: Annual | E55: 0.1 | F55: 1 | J55: 50-F | K55: Central | L55: 0.2044274475 | M55: 0.2044274475 | N55: 0.00155204 | O55: high | P55: medium | R55: 5023010 | S55: NA | T55: NA | U55: NA | X55: RWH Indoor | Y55: Annual | Z55: 0.1147842057 | AA55: 0.114784 | AB55: 0.4324075799 | AE55: RWH Outdoor | AF55: Annual | AG55: 0.1147842057 | AH55: 0 | AI55: 1 | AJ55: 1 | AK55: 0 | AM55: 0
A56: Infiltration Trench/Gallery | B56: B | C56: Captured | D56: Annual | E56: 0.02 | F56: 0.5471698113 | J56: 50-G | K56: Central/Southeast | L56: 0.2120782619 | M56: 0.2120782619 | N56: 0.00386782 | O56: high | P56: high | R56: 5025028 | S56: NA | T56: NA | U56: NA | X56: RWH Indoor | Y56: Annual | Z56: 0.1377410468 | AA56: 0.006887 | AB56: 0.1143938336 | AE56: RWH Outdoor | AF56: Annual | AG56: 0.2295684114 | AH56: 0 | AI56: 1 | AJ56: 1 | AK56: 0 | AM56: 0
A57: Infiltration Trench/Gallery | B57: B | C57: Captured | D57: Annual | E57: 0.04 | F57: 0.8301886792 | J57: 50-H | K57: Central | L57: 0.2060728667 | M57: 0.2060728667 | N57: 0.00377224 | O57: high | P57: high | R57: 5045001 | S57: NA | T57: NA | U57: NA | X57: RWH Indoor | Y57: Annual | Z57: 0.1377410468 | AA57: 0.009183 | AB57: 0.1380059654 | AE57: RWH Outdoor | AF57: Annual | AG57: 0.3443526171 | AH57: 0 | AI57: 1 | AJ57: 1 | AK57: 0 | AM57: 0
A58: Infiltration Trench/Gallery | B58: B | C58: Captured | D58: Annual | E58: 0.06 | F58: 0.9094339623 | J58: 50-J | K58: Central | L58: 0.2274521933 | M58: 0.2274521933 | N58: 0.00347338 | O58: high | P58: medium | R58: 5045005 | S58: NA | T58: NA | U58: NA | X58: RWH Indoor | Y58: Annual | Z58: 0.1377410468 | AA58: 0.013774 | AB58: 0.1758409341 | AE58: RWH Outdoor | AF58: Annual | AG58: 0.4591368228 | AH58: 0 | AI58: 1 | AJ58: 1 | AK58: 0 | AM58: 0
A59: Infiltration Trench/Gallery | B59: B | C59: Captured | D59: Annual | E59: 0.08 | F59: 1 | J59: 50-K | K59: Central | L59: 0.25 | M59: 0.25 | N59: 0.00367156 | O59: high | P59: high | R59: 7147024A | S59: NA | T59: NA | U59: NA | V59: A | X59: RWH Indoor | Y59: Annual | Z59: 0.1377410468 | AA59: 0.018365 | AB59: 0.2059533469 | AE59: RWH Outdoor | AF59: Annual | AG59: 0.6887052342 | AH59: 0 | AI59: 1 | AJ59: 1 | AK59: 0 | AM59: 0
A60: Infiltration Trench/Gallery | B60: B | C60: Captured | D60: Annual | E60: 0.1 | F60: 1 | J60: 50-L | K60: Central | L60: 0.2073259694 | M60: 0.2073259694 | N60: 0.00468532 | O60: high | P60: high | R60: 7281006 | S60: NA | T60: NA | U60: NA | V60: A | X60: RWH Indoor | Y60: Annual | Z60: 0.1377410468 | AA60: 0.027548 | AB60: 0.2527331467 | AE60: RWH Outdoor | AF60: Annual | AG60: 0.9182736455 | AH60: 0 | AI60: 1 | AJ60: 1 | AK60: 0 | AM60: 0
A61: Infiltration Trench/Gallery | B61: B | C61: Reduced | D61: Annual | E61: 0.02 | F61: 0.5471698113 | J61: 50-M | K61: Central | L61: 0.25 | M61: 0.25 | N61: 0.0075 | O61: high | P61: high | R61: 7281007 | S61: NA | T61: NA | U61: NA | V61: A | X61: RWH Indoor | Y61: Annual | Z61: 0.1377410468 | AA61: 0.034435 | AB61: 0.2805121253 | AE61: RWH Outdoor | AF61: Annual | AG61: 1.147842057 | AH61: 0 | AI61: 1 | AJ61: 1 | AK61: 0 | AM61: 0
A62: Infiltration Trench/Gallery | B62: B | C62: Reduced | D62: Annual | E62: 0.04 | F62: 0.8301886792 | J62: 50-N | K62: Central | L62: 0.2073259694 | M62: 0.2073259694 | N62: 0.00525432 | O62: high | P62: high | R62: 7282009 | S62: NA | T62: NA | U62: NA | V62: A | X62: RWH Indoor | Y62: Annual | Z62: 0.1377410468 | AA62: 0.045914 | AB62: 0.3190137895 | AE62: RWH Outdoor | AF62: Annual | AG62: 1.377410468 | AH62: 0 | AI62: 1 | AJ62: 1 | AK62: 0 | AM62: 0
A63: Infiltration Trench/Gallery | B63: B | C63: Reduced | D63: Annual | E63: 0.06 | F63: 0.9094339623 | J63: 50-P | K63: Central | L63: 0.1936363895 | M63: 0.1936363895 | N63: 0.00695774 | O63: medium | P63: high | R63: 9900043H | S63: NA | T63: NA | U63: NA | X63: RWH Indoor | Y63: Annual | Z63: 0.1377410468 | AA63: 0.068871 | AB63: 0.3799053105 | AE63: RWH Outdoor | AF63: Annual | AG63: 1.60697888 | AH63: 0 | AI63: 1 | AJ63: 1 | AK63: 0 | AM63: 0
A64: Infiltration Trench/Gallery | B64: B | C64: Reduced | D64: Annual | E64: 0.08 | F64: 1 | J64: 50-Q | K64: Central | L64: 0.2226250312 | M64: 0.2226250312 | N64: 0.0025784 | O64: high | P64: medium | R64: 8708003 | S64: NA | T64: NA | U64: NA | V64: C\D | X64: RWH Indoor | Y64: Annual | Z64: 0.1377410468 | AA64: 0.091827 | AB64: 0.4259072989 | AE64: RWH Outdoor | AF64: Annual | AG64: 1.836547291 | AH64: 0 | AI64: 1 | AJ64: 1 | AK64: 0 | AM64: 0
A65: Infiltration Trench/Gallery | B65: B | C65: Reduced | D65: Annual | E65: 0.1 | F65: 1 | I65: Yosemite | J65: 70-A | K65: Southeast | L65: 0.1 | M65: 0.1 | N65: 0.00367888 | O65: low | P65: high | R65: 8722005 | S65: NA | T65: NA | U65: NA | V65: C\D | X65: RWH Indoor | Y65: Annual | Z65: 0.1377410468 | AA65: 0.137741 | AB65: 0.4927435213 | AE65: RWH Outdoor | AF65: Annual | AG65: 2.066115702 | AH65: 0 | AI65: 1 | AJ65: 1 | AK65: 0 | AM65: 0
A66: Perm Pavement | B66: A | C66: Captured | D66: Annual | E66: 0.25 | F66: 1 | J66: 70-B | K66: Southeast | L66: 0.1 | M66: 0.1 | N66: 0.0019696 | O66: low | P66: medium | R66: 9900001 | S66: NA | T66: NA | U66: NA | V66: C\D | X66: RWH Indoor | Y66: Annual | Z66: 0.160697888 | AA66: 0.008035 | AB66: 0.1318945901 | AE66: RWH Outdoor | AF66: Annual | AG66: 0.02295684114 | AH66: 0.01 | AI66: 0.8 | AJ66: 1 | AK66: 0.04111111111 | AM66: 0.2139152609
A67: Perm Pavement | B67: A | C67: Reduced | D67: Annual | E67: 0.25 | F67: 1 | J67: 70-C | K67: Southeast | L67: 0.1 | M67: 0.1 | N67: 0.002413771429 | O67: low | P67: medium | R67: 9900003 | S67: NA | T67: NA | U67: NA | V67: C\D | X67: RWH Indoor | Y67: Annual | Z67: 0.160697888 | AA67: 0.010713 | AB67: 0.1585624095 | AE67: RWH Outdoor | AF67: Annual | AG67: 0.02295684114 | AH67: 0.05 | AI67: 0.8 | AJ67: 1 | AK67: 0.09222222222 | AM67: 0.2397983197
A68: Perm Pavement | B68: B | C68: Captured | D68: Annual | E68: 0.25 | F68: 1 | J68: 70-D | K68: Southeast | L68: 0.1 | M68: 0.1 | N68: 0.0039656 | O68: low | P68: high | R68: 9900007 | S68: NA | T68: NA | U68: NA | V68: B | X68: RWH Indoor | Y68: Annual | Z68: 0.160697888 | AA68: 0.01607 | AB68: 0.2016198262 | AE68: RWH Outdoor | AF68: Annual | AG68: 0.02295684114 | AH68: 0.1 | AI68: 0.8 | AJ68: 1 | AK68: 0.1311111111 | AM68: 0.2759988383
A69: Perm Pavement | B69: B | C69: Reduced | D69: Annual | E69: 0.25 | F69: 1 | J69: 70-E | K69: Southeast | L69: 0.1 | M69: 0.1 | N69: 0.00083488 | O69: low | P69: low | R69: 9900009 | S69: NA | T69: NA | U69: NA | V69: B | X69: RWH Indoor | Y69: Annual | Z69: 0.160697888 | AA69: 0.021426 | AB69: 0.2354546221 | AE69: RWH Outdoor | AF69: Annual | AG69: 0.02295684114 | AH69: 0.2 | AI69: 0.8 | AJ69: 1 | AK69: 0.19 | AM69: 0.2955376878
A70: Perm Pavement | B70: C/D | C70: Captured | D70: Annual | E70: 0.25 | F70: 1 | J70: 70-H | K70: Southeast | L70: 0.1 | M70: 0.1 | N70: 0.002413771429 | O70: low | P70: medium | R70: 9900015 | S70: NA | T70: NA | U70: NA | X70: RWH Indoor | Y70: Annual | Z70: 0.160697888 | AA70: 0.03214 | AB70: 0.2880124495 | AE70: RWH Outdoor | AF70: Annual | AG70: 0.02295684114 | AH70: 0.3 | AI70: 0.8 | AJ70: 1 | AK70: 0.2366666667 | AM70: 0.2799615241
A71: Perm Pavement | B71: C/D | C71: Reduced | D71: Annual | E71: 0.25 | F71: 0.9626008311 | I71: Sunnydale | J71: 90-D | K71: Southeast | L71: 0.05 | M71: 0.05 | N71: 0.00294988 | O71: =IF(L71>0.2,"high",IF(L71>0.1,"medium","low")) -> low | P71: =IF(N71>0.0035,"high",IF(N71>0.001,"medium","low")) -> medium | R71: 9900017 | S71: NA | T71: NA | U71: NA | X71: RWH Indoor | Y71: Annual | Z71: 0.160697888 | AA71: 0.040174 | AB71: 0.3189026736 | AE71: RWH Outdoor | AF71: Annual | AG71: 0.02295684114 | AH71: 0.4 | AI71: 0.8 | AJ71: 1 | AK71: 0.2766666667 | AM71: 0.3303890921
A72: Perm Pavement | B72: Lined | C72: Captured | D72: Annual | E72: 0.25 | F72: 1 | J72: 90-G | K72: Southeast | L72: 0.05 | M72: 0.05 | N72: 0.00150256 | O72: =IF(L72>0.2,"high",IF(L72>0.1,"medium","low")) -> low | P72: =IF(N72>0.0035,"high",IF(N72>0.001,"medium","low")) -> medium | R72: 9900019 | S72: NA | T72: NA | U72: NA | X72: RWH Indoor | Y72: Annual | Z72: 0.160697888 | AA72: 0.053566 | AB72: 0.3613489528 | AE72: RWH Outdoor | AF72: Annual | AG72: 0.02295684114 | AH72: 0.5 | AI72: 0.8 | AJ72: 1 | AK72: 0.3122222222 | AM72: 0.370610626
A73: Perm Pavement | B73: Lined | C73: Reduced | D73: Annual | E73: 0.25 | F73: 0 | I73: 1) Performance estimates originated from spatial analysis model runs conducted during UWA, and then were refined during the CSP based on model runs of individual GI projects. | R73: 9900023 | S73: NA | T73: NA | U73: NA | X73: RWH Indoor | Y73: Annual | Z73: 0.160697888 | AA73: 0.080349 | AB73: 0.4273518058 | AE73: RWH Outdoor | AF73: Annual | AG73: 0.02295684114 | AH73: 0.6 | AI73: 0.8 | AJ73: 1 | AK73: 0.3433333333 | AM73: 0.2786749028
A74: Perm Pavement | B74: A | C74: Captured | D74: Annual | E74: 1 | F74: 1 | I74: 2) Initial CSD performance basis, prior to CSP refinements: Westside CSD reduction calculated by converting impervious area to GI runoff surfaces in ICM. North Shore and Channel reductions calculated by removing impervious area. Islais Creek reductions estimated from sensitivity analyses. For Islais Creek, each minor watershed was not isolated per model run, but rather, statistical analyses were done to calculate correlation between CSD volume reduction per GI changes in each minor watershed. | R74: 9900024 | S74: NA | T74: NA | U74: NA | V74: C\D | X74: RWH Indoor | Y74: Annual | Z74: 0.160697888 | AA74: 0.107132 | AB74: 0.4761872501 | AE74: RWH Outdoor | AF74: Annual | AG74: 0.02295684114 | AH74: 0.7 | AI74: 0.8 | AJ74: 1 | AK74: 0.3716666667 | AM74: 0.3989082477
A75: Perm Pavement | B75: A | C75: Reduced | D75: Annual | E75: 1 | F75: 1 | I75: 3) There is no CSD event during the typical year model run in Yosemite or Sunnydale. Thus, estimated reduction reflects performance from long-term historical record. Basis is performance from individually modeled projects; however, performance in Yosemite is contigent upon operation of Griffith PS and sensitivity of model results at Islais Creek. Estimated effectiveness in Yosemite minor watersheds would be significantly less if Islais Creek reductions were not included. Ultimately, no GI projects were recommended in Yosemite as Tier 1 projects in the CSP. | R75: 9900026 | S75: NA | T75: NA | U75: NA | V75: C\D | X75: RWH Indoor | Y75: Annual | Z75: 0.160697888 | AA75: 0.160698 | AB75: 0.5464125078 | AE75: RWH Outdoor | AF75: Annual | AG75: 0.02295684114 | AH75: 0.8 | AI75: 0.8 | AJ75: 1 | AK75: 0.3972222222 | AM75: 0.3962978011
A76: Perm Pavement | B76: B | C76: Captured | D76: Annual | E76: 1 | F76: 1 | I76: 4) Initial basis is the Bayside Flooding Analyses - Model Version EHY13_v280, Baseline. Impervious area converted to 3L Rain Garden or 9L FTP pending infiltration conditions (Dec. 2015). | R76: 9900028 | S76: NA | T76: NA | U76: NA | V76: C\D | X76: RWH Indoor | Y76: Annual | Z76: 0.1836547291 | AA76: 0.009183 | AB76: 0.1487286511 | AE76: RWH Outdoor | AF76: Annual | AG76: 0.02295684114 | AH76: 0.9 | AI76: 0.8 | AJ76: 1 | AK76: 0.4211111111 | AM76: 0.5024180605
A77: Perm Pavement | B77: B | C77: Reduced | D77: Annual | E77: 1 | F77: 1 | I77: 5) Initial basis is the Westside Flooding (and CSD) Analyses - EHY13_v211, Baseline. All acreaged managed by GI was converted to 1S infiltrative green streets small runoff surface (Nov-Dec 2014). | R77: 9900029 | S77: NA | T77: NA | U77: NA | X77: RWH Indoor | Y77: Annual | Z77: 0.1836547291 | AA77: 0.012244 | AB77: 0.1787855059 | AE77: RWH Outdoor | AF77: Annual | AG77: 0.02295684114 | AH77: 1 | AI77: 0.8 | AJ77: 1 | AK77: 0.4438888889 | AM77: 0.4971333451
A78: Perm Pavement | B78: C/D | C78: Captured | D78: Annual | E78: 1 | F78: 1 | R78: 9900030 | S78: NA | T78: NA | U78: NA | V78: C\D | X78: RWH Indoor | Y78: Annual | Z78: 0.1836547291 | AA78: 0.018365 | AB78: 0.2265653489 | AE78: RWH Outdoor | AF78: Annual | AG78: 0.1147842057 | AH78: 0.01 | AI78: 0.8 | AJ78: 1 | AK78: 0.07166666667 | AM78: 0.5276611123
A79: Perm Pavement | B79: C/D | C79: Reduced | D79: Annual | E79: 1 | F79: 1 | R79: 9900031 | S79: NA | T79: NA | U79: NA | X79: RWH Indoor | Y79: Annual | Z79: 0.1836547291 | AA79: 0.024487 | AB79: 0.2639002961 | AE79: RWH Outdoor | AF79: Annual | AG79: 0.1147842057 | AH79: 0.05 | AI79: 0.8 | AJ79: 1 | AK79: 0.1744444444 | AM79: 0.551843201
A80: Perm Pavement | B80: Lined | C80: Captured | D80: Annual | E80: 1 | F80: 1 | R80: 9900032 | S80: NA | T80: NA | U80: NA | V80: C\D | X80: RWH Indoor | Y80: Annual | Z80: 0.1836547291 | AA80: 0.036731 | AB80: 0.3216805715 | AE80: RWH Outdoor | AF80: Annual | AG80: 0.1147842057 | AH80: 0.1 | AI80: 0.8 | AJ80: 1 | AK80: 0.2405555556 | AM80: 0.5713195605
A81: Perm Pavement | B81: Lined | C81: Reduced | D81: Annual | E81: 1 | F81: 0 | R81: 9900033 | S81: NA | T81: NA | U81: NA | X81: RWH Indoor | Y81: Annual | Z81: 0.1836547291 | AA81: 0.045914 | AB81: 0.3548486718 | AE81: RWH Outdoor | AF81: Annual | AG81: 0.1147842057 | AH81: 0.2 | AI81: 0.8 | AJ81: 1 | AK81: 0.3238888889 | AM81: 0.6053601805
A82: Rainwater Harvesting Indoor | B82: N/A | C82: Captured | D82: Annual | E82: 0.125 | F82: 0.55 | R82: 9900035 | S82: NA | T82: NA | U82: NA | X82: RWH Indoor | Y82: Annual | Z82: 0.1836547291 | AA82: 0.061218 | AB82: 0.4002950807 | AE82: RWH Outdoor | AF82: Annual | AG82: 0.1147842057 | AH82: 0.3 | AI82: 0.8 | AJ82: 1 | AK82: 0.3811111111 | AM82: 0.6206132473
A83: Rainwater Harvesting Indoor | B83: N/A | C83: Captured | D83: Annual | E83: 0.25 | F83: 0.64 | R83: 9900038 | S83: NA | T83: NA | U83: NA | V83: B | X83: RWH Indoor | Y83: Annual | Z83: 0.1836547291 | AA83: 0.091827 | AB83: 0.471075918 | AE83: RWH Outdoor | AF83: Annual | AG83: 0.1147842057 | AH83: 0.4 | AI83: 0.8 | AJ83: 1 | AK83: 0.4261111111 | AM83: 0.6422561481
A84: Rainwater Harvesting Indoor | B84: N/A | C84: Captured | D84: Annual | E84: 0.375 | F84: 0.69 | R84: 9900040 | S84: NA | T84: NA | U84: NA | V84: C\D | X84: RWH Indoor | Y84: Annual | Z84: 0.1836547291 | AA84: 0.122436 | AB84: 0.5221336806 | AE84: RWH Outdoor | AF84: Annual | AG84: 0.1147842057 | AH84: 0.5 | AI84: 0.8 | AJ84: 1 | AK84: 0.4644444444 | AM84: 0.6588288055
A85: Rainwater Harvesting Indoor | B85: N/A | C85: Captured | D85: Annual | E85: 0.5 | F85: 0.73 | R85: 9900041H | S85: NA | T85: NA | U85: NA | X85: RWH Indoor | Y85: Annual | Z85: 0.1836547291 | AA85: 0.183655 | AB85: 0.5956368578 | AE85: RWH Outdoor | AF85: Annual | AG85: 0.1147842057 | AH85: 0.6 | AI85: 0.8 | AJ85: 1 | AK85: 0.4972222222 | AM85: 0.6734178293
A86: Rainwater Harvesting Indoor | B86: N/A | C86: Captured | D86: Annual | E86: 1 | F86: 0.82 | R86: 9900048 | S86: NA | T86: NA | U86: NA | V86: C\D | X86: RWH Indoor | Y86: Annual | Z86: 0.2066115702 | AA86: 0.010331 | AB86: 0.1652293643 | AE86: RWH Outdoor | AF86: Annual | AG86: 0.1147842057 | AH86: 0.7 | AI86: 0.8 | AJ86: 1 | AK86: 0.5255555556 | AM86: 0.6884063458
A87: Rainwater Harvesting Indoor | B87: N/A | C87: Captured | D87: Annual | E87: 1.25 | F87: 0.85 | R87: 9900050H | S87: NA | T87: NA | U87: NA | V87: C\D | X87: RWH Indoor | Y87: Annual | Z87: 0.2066115702 | AA87: 0.013774 | AB87: 0.1983974647 | AE87: RWH Outdoor | AF87: Annual | AG87: 0.1147842057 | AH87: 0.8 | AI87: 0.8 | AJ87: 1 | AK87: 0.5511111111 | AM87: 0.6991801581
A88: Rainwater Harvesting Indoor | B88: N/A | C88: Captured | D88: Annual | E88: 1.5 | F88: 0.87 | R88: 9900052 | S88: NA | T88: NA | U88: NA | V88: C\D | X88: RWH Indoor | Y88: Annual | Z88: 0.2066115702 | AA88: 0.020661 | AB88: 0.2503997125 | AE88: RWH Outdoor | AF88: Annual | AG88: 0.1147842057 | AH88: 0.9 | AI88: 0.8 | AJ88: 1 | AK88: 0.5722222222 | AM88: 0.7135050503
A89: Rainwater Harvesting Indoor | B89: N/A | C89: Captured | D89: Annual | E89: 2 | F89: 0.91 | R89: 9900062 | S89: NA | T89: NA | U89: NA | V89: C\D | X89: RWH Indoor | Y89: Annual | Z89: 0.2066115702 | AA89: 0.027548 | AB89: 0.2911236951 | AE89: RWH Outdoor | AF89: Annual | AG89: 0.1147842057 | AH89: 1 | AI89: 0.8 | AJ89: 1 | AK89: 0.5944444444 | AM89: 0.7203492783
A90: Rainwater Harvesting Indoor | B90: N/A | C90: Reduced | D90: Annual | E90: 0.125 | F90: 0.55 | R90: 9900098 | S90: NA | T90: NA | U90: NA | V90: C\D | X90: RWH Indoor | Y90: Annual | Z90: 0.2066115702 | AA90: 0.041322 | AB90: 0.3531263752 | AE90: RWH Outdoor | AF90: Annual | AG90: 0.2295684114 | AH90: 0.01 | AI90: 0.8 | AJ90: 1 | AK90: 0.085 | AM90: 0.5642354856
A91: Rainwater Harvesting Indoor | B91: N/A | C91: Reduced | D91: Annual | E91: 0.25 | F91: 0.64 | R91: 9900503 | S91: NA | T91: NA | U91: NA | V91: C\D | X91: RWH Indoor | Y91: Annual | Z91: 0.2066115702 | AA91: 0.051653 | AB91: 0.3884612359 | AE91: RWH Outdoor | AF91: Annual | AG91: 0.2295684114 | AH91: 0.05 | AI91: 0.8 | AJ91: 1 | AK91: 0.2227777778 | AM91: 0.604588429
A92: Rainwater Harvesting Indoor | B92: N/A | C92: Reduced | D92: Annual | E92: 0.375 | F92: 0.69 | R92: 3941001 | S92: NA | T92: NA | U92: NA | V92: B | X92: RWH Indoor | Y92: Annual | Z92: 0.2066115702 | AA92: 0.068871 | AB92: 0.4372411222 | AE92: RWH Outdoor | AF92: Annual | AG92: 0.2295684114 | AH92: 0.1 | AI92: 0.8 | AJ92: 1 | AK92: 0.3088888889 | AM92: 0.6339588396
A93: Rainwater Harvesting Indoor | B93: N/A | C93: Reduced | D93: Annual | E93: 0.5 | F93: 0.73 | R93: 4232004 | S93: NA | T93: NA | U93: NA | V93: C\D | X93: RWH Indoor | Y93: Annual | Z93: 0.2066115702 | AA93: 0.103306 | AB93: 0.5120221324 | AE93: RWH Outdoor | AF93: Annual | AG93: 0.2295684114 | AH93: 0.2 | AI93: 0.8 | AJ93: 1 | AK93: 0.4111111111 | AM93: 0.6735095759
A94: Rainwater Harvesting Indoor | B94: N/A | C94: Reduced | D94: Annual | E94: 1 | F94: 0.82 | R94: 4232005 | S94: NA | T94: NA | U94: NA | V94: C\D | X94: RWH Indoor | Y94: Annual | Z94: 0.2066115702 | AA94: 0.137741 | AB94: 0.5647466337 | AE94: RWH Outdoor | AF94: Annual | AG94: 0.2295684114 | AH94: 0.3 | AI94: 0.8 | AJ94: 1 | AK94: 0.48 | AM94: 0.6991712131
A95: Rainwater Harvesting Indoor | B95: N/A | C95: Reduced | D95: Annual | E95: 1.25 | F95: 0.85 | R95: 4232009 | S95: NA | T95: NA | U95: NA | V95: C\D | X95: RWH Indoor | Y95: Annual | Z95: 0.2066115702 | AA95: 0.206612 | AB95: 0.6401387814 | AE95: RWH Outdoor | AF95: Annual | AG95: 0.2295684114 | AH95: 0.4 | AI95: 0.8 | AJ95: 1 | AK95: 0.5322222222 | AM95: 0.7210159851
A96: Rainwater Harvesting Indoor | B96: N/A | C96: Reduced | D96: Annual | E96: 1.5 | F96: 0.87 | R96: 4240001 | S96: NA | T96: NA | U96: NA | V96: C\D | X96: RWH Indoor | Y96: Annual | Z96: 0.2295684114 | AA96: 0.011478 | AB96: 0.1816189617 | AE96: RWH Outdoor | AF96: Annual | AG96: 0.2295684114 | AH96: 0.5 | AI96: 0.8 | AJ96: 1 | AK96: 0.5722222222 | AM96: 0.7392512054
A97: Rainwater Harvesting Indoor | B97: N/A | C97: Reduced | D97: Annual | E97: 2 | F97: 0.91 | R97: 4240002 | S97: NA | T97: NA | U97: NA | V97: C\D | X97: RWH Indoor | Y97: Annual | Z97: 0.2295684114 | AA97: 0.015305 | AB97: 0.217453844 | AE97: RWH Outdoor | AF97: Annual | AG97: 0.2295684114 | AH97: 0.6 | AI97: 0.8 | AJ97: 1 | AK97: 0.6055555556 | AM97: 0.7544238325
A98: Rainwater Harvesting Outdoor | B98: N/A | C98: Captured | D98: Annual | E98: 0.125 | F98: 0.43 | R98: 3794029 | S98: NA | T98: NA | U98: NA | V98: C\D | X98: RWH Indoor | Y98: Annual | Z98: 0.2295684114 | AA98: 0.022957 | AB98: 0.2734562647 | AE98: RWH Outdoor | AF98: Annual | AG98: 0.2295684114 | AH98: 0.7 | AI98: 0.8 | AJ98: 1 | AK98: 0.6333333333 | AM98: 0.7666092925
A99: Rainwater Harvesting Outdoor | B99: N/A | C99: Captured | D99: Annual | E99: 0.25 | F99: 0.5778151261 | R99: 3810006 | S99: NA | T99: NA | U99: NA | V99: B | X99: RWH Indoor | Y99: Annual | Z99: 0.2295684114 | AA99: 0.030609 | AB99: 0.3172359349 | AE99: RWH Outdoor | AF99: Annual | AG99: 0.2295684114 | AH99: 0.8 | AI99: 0.8 | AJ99: 1 | AK99: 0.6611111111 | AM99: 0.7765115807
A100: Rainwater Harvesting Outdoor | B100: N/A | C100: Captured | D100: Annual | E100: 0.375 | F100: 0.6888571429 | R100: 3810008 | S100: NA | T100: NA | U100: NA | V100: C\D | X100: RWH Indoor | Y100: Annual | Z100: 0.2295684114 | AA100: 0.045914 | AB100: 0.383072114 | AE100: RWH Outdoor | AF100: Annual | AG100: 0.2295684114 | AH100: 0.9 | AI100: 0.8 | AJ100: 1 | AK100: 0.6833333333 | AM100: 0.7889009057
A101: Rainwater Harvesting Outdoor | B101: N/A | C101: Captured | D101: Annual | E101: 0.5 | F101: 0.7710084034 | R101: 3899001 | S101: NA | T101: NA | U101: NA | V101: C\D | X101: RWH Indoor | Y101: Annual | Z101: 0.2295684114 | AA101: 0.057392 | AB101: 0.4204626191 | AE101: RWH Outdoor | AF101: Annual | AG101: 0.2295684114 | AH101: 1 | AI101: 0.8 | AJ101: 1 | AK101: 0.7 | AM101: 0.7992743272
A102: Rainwater Harvesting Outdoor | B102: N/A | C102: Captured | D102: Annual | E102: 1 | F102: 0.9423529412 | R102: 4046001 | S102: NA | T102: NA | U102: NA | V102: A | X102: RWH Indoor | Y102: Annual | Z102: 0.2295684114 | AA102: 0.076523 | AB102: 0.472464867 | AE102: RWH Outdoor | AF102: Annual | AG102: 0.3443526171 | AH102: 0.01 | AI102: 0.8 | AJ102: 1 | AK102: 0.09333333333 | AM102: 0.6044599615
A103: Rainwater Harvesting Outdoor | B103: N/A | C103: Captured | D103: Annual | E103: 1.25 | F103: 0.9967731092 | R103: 4046002 | S103: NA | T103: NA | U103: NA | V103: B | X103: RWH Indoor | Y103: Annual | Z103: 0.2295684114 | AA103: 0.114784 | AB103: 0.5502460069 | AE103: RWH Outdoor | AF103: Annual | AG103: 0.3443526171 | AH103: 0.05 | AI103: 0.8 | AJ103: 1 | AK103: 0.2477777778 | AM103: 0.6478576361
A104: Rainwater Harvesting Outdoor | B104: N/A | C104: Captured | D104: Annual | E104: 1.5 | F104: 1 | R104: 4052001 | S104: NA | T104: NA | U104: NA | V104: B | X104: RWH Indoor | Y104: Annual | Z104: 0.2295684114 | AA104: 0.153046 | AB104: 0.6041372252 | AE104: RWH Outdoor | AF104: Annual | AG104: 0.3443526171 | AH104: 0.1 | AI104: 0.8 | AJ104: 1 | AK104: 0.3505555556 | AM104: 0.6821721962
A105: Rainwater Harvesting Outdoor | B105: N/A | C105: Captured | D105: Annual | E105: 2 | F105: 1 | R105: 4175002 | S105: NA | T105: NA | U105: NA | V105: C\D | X105: RWH Indoor | Y105: Annual | Z105: 0.2295684114 | AA105: 0.229568 | AB105: 0.6800293946 | AE105: RWH Outdoor | AF105: Annual | AG105: 0.3443526171 | AH105: 0.2 | AI105: 0.8 | AJ105: 1 | AK105: 0.4683333333 | AM105: 0.721432681
A106: Rainwater Harvesting Outdoor | B106: N/A | C106: Reduced | D106: Annual | E106: 0.125 | F106: 0.3 | R106: 4175006 | S106: NA | T106: NA | U106: NA | V106: B | X106: RWH Indoor | Y106: Annual | Z106: 0.2525252525 | AA106: 0.012626 | AB106: 0.1975085374 | AE106: RWH Outdoor | AF106: Annual | AG106: 0.3443526171 | AH106: 0.3 | AI106: 0.8 | AJ106: 1 | AK106: 0.5433333333 | AM106: 0.7504105329
A107: Rainwater Harvesting Outdoor | B107: N/A | C107: Reduced | D107: Annual | E107: 0.25 | F107: 0.4 | R107: 4232003 | S107: NA | T107: NA | U107: NA | V107: C\D | X107: RWH Indoor | Y107: Annual | Z107: 0.2525252525 | AA107: 0.016835 | AB107: 0.2360102016 | AE107: RWH Outdoor | AF107: Annual | AG107: 0.3443526171 | AH107: 0.4 | AI107: 0.8 | AJ107: 1 | AK107: 0.6 | AM107: 0.7710310583
A108: Rainwater Harvesting Outdoor | B108: N/A | C108: Reduced | D108: Annual | E108: 0.375 | F108: 0.46 | R108: 4232006 | S108: NA | T108: NA | U108: NA | V108: C\D | X108: RWH Indoor | Y108: Annual | Z108: 0.2525252525 | AA108: 0.025253 | AB108: 0.2959572373 | AE108: RWH Outdoor | AF108: Annual | AG108: 0.3443526171 | AH108: 0.5 | AI108: 0.8 | AJ108: 1 | AK108: 0.6444444444 | AM108: 0.788408206
A109: Rainwater Harvesting Outdoor | B109: N/A | C109: Reduced | D109: Annual | E109: 0.5 | F109: 0.5 | R109: 4232007 | S109: NA | T109: NA | U109: NA | V109: C\D | X109: RWH Indoor | Y109: Annual | Z109: 0.2525252525 | AA109: 0.03367 | AB109: 0.3424592474 | AE109: RWH Outdoor | AF109: Annual | AG109: 0.3443526171 | AH109: 0.6 | AI109: 0.8 | AJ109: 1 | AK109: 0.6777777778 | AM109: 0.8072561425
A110: Rainwater Harvesting Outdoor | B110: N/A | C110: Reduced | D110: Annual | E110: 1 | F110: 0.6 | R110: 4232008 | S110: NA | T110: NA | U110: NA | V110: C\D | X110: RWH Indoor | Y110: Annual | Z110: 0.2525252525 | AA110: 0.050505 | AB110: 0.4117400199 | AE110: RWH Outdoor | AF110: Annual | AG110: 0.3443526171 | AH110: 0.7 | AI110: 0.8 | AJ110: 1 | AK110: 0.7055555556 | AM110: 0.8216736795
A111: Rainwater Harvesting Outdoor | B111: N/A | C111: Reduced | D111: Annual | E111: 1.25 | F111: 0.64 | R111: 4232010 | S111: NA | T111: NA | U111: NA | V111: B | X111: RWH Indoor | Y111: Annual | Z111: 0.2525252525 | AA111: 0.063131 | AB111: 0.4513528433 | AE111: RWH Outdoor | AF111: Annual | AG111: 0.3443526171 | AH111: 0.8 | AI111: 0.8 | AJ111: 1 | AK111: 0.7277777778 | AM111: 0.8357111039
A112: Rainwater Harvesting Outdoor | B112: N/A | C112: Reduced | D112: Annual | E112: 1.5 | F112: 0.68 | R112: 4238001 | S112: NA | T112: NA | U112: NA | V112: C\D | X112: RWH Indoor | Y112: Annual | Z112: 0.2525252525 | AA112: 0.084175 | AB112: 0.5057440832 | AE112: RWH Outdoor | AF112: Annual | AG112: 0.3443526171 | AH112: 0.9 | AI112: 0.8 | AJ112: 1 | AK112: 0.75 | AM112: 0.8450801796 | AN112: =AH112*43560 -> 39204
A113: Rainwater Harvesting Outdoor | B113: N/A | C113: Reduced | D113: Annual | E113: 2 | F113: 0.76 | R113: 4239001 | S113: NA | T113: NA | U113: NA | V113: C\D | X113: RWH Indoor | Y113: Annual | Z113: 0.2525252525 | AA113: 0.126263 | AB113: 0.5856364255 | AE113: RWH Outdoor | AF113: Annual | AG113: 0.3443526171 | AH113: 1 | AI113: 0.8 | AJ113: 1 | AK113: 0.7722222222 | AM113: 0.854835367 | AN113: =AH113*43560 -> 43560
A114: Blue Roof | B114: N/A | C114: Captured | D114: Annual | E114: 0.8 | F114: 0.3396226415 | R114: 4239002 | S114: NA | T114: NA | U114: NA | V114: C\D | X114: RWH Indoor | Y114: Annual | Z114: 0.2525252525 | AA114: 0.16835 | AB114: 0.6401943394 | AE114: RWH Outdoor | AF114: Annual | AG114: 0.4591368228 | AH114: 0.01 | AI114: 0.8 | AJ114: 1 | AK114: 0.1 | AM114: 0.6417004193
A115: Blue Roof | B115: N/A | C115: Reduced | D115: Annual | E115: 0.8 | F115: 0.3396226415 | R115: 4380010 | S115: NA | T115: NA | U115: NA | V115: C\D | X115: RWH Indoor | Y115: Annual | Z115: 0.2525252525 | AA115: 0.252525 | AB115: 0.715697603 | AE115: RWH Outdoor | AF115: Annual | AG115: 0.4591368228 | AH115: 0.05 | AI115: 0.8 | AJ115: 1 | AK115: 0.2655555556 | AM115: 0.6841841759
A116: Blue Roof | B116: N/A | C116: Captured | D116: Annual | E116: 1 | F116: 0.4339622642 | R116: 4381001 | S116: NA | T116: NA | U116: NA | V116: C\D | X116: RWH Indoor | Y116: Annual | Z116: 0.2754820937 | AA116: 0.013774 | AB116: 0.2131758813 | AE116: RWH Outdoor | AF116: Annual | AG116: 0.4591368228 | AH116: 0.1 | AI116: 0.8 | AJ116: 1 | AK116: 0.38 | AM116: 0.7196977316
A117: Blue Roof | B117: N/A | C117: Reduced | D117: Annual | E117: 1 | F117: 0.4339622642 | R117: 4501001 | S117: NA | T117: NA | U117: NA | V117: C\D | X117: RWH Indoor | Y117: Annual | Z117: 0.2754820937 | AA117: 0.018365 | AB117: 0.2540665377 | AE117: RWH Outdoor | AF117: Annual | AG117: 0.4591368228 | AH117: 0.2 | AI117: 0.8 | AJ117: 1 | AK117: 0.5088888889 | AM117: 0.760023512
A118: Vegetated Roof | B118: N/A | C118: Captured | D118: Annual | E118: 0.8 | F118: 1 | R118: 4379001 | S118: NA | T118: NA | U118: NA | V118: C\D | X118: RWH Indoor | Y118: Annual | Z118: 0.2754820937 | AA118: 0.027548 | AB118: 0.3176248406 | AE118: RWH Outdoor | AF118: Annual | AG118: 0.4591368228 | AH118: 0.3 | AI118: 0.8 | AJ118: 1 | AK118: 0.5888888889 | AM118: 0.7867074414
A119: Vegetated Roof | B119: N/A | C119: Reduced | D119: Annual | E119: 0.8 | F119: 0.3092037229 | R119: 4813027 | S119: NA | T119: NA | U119: NA | V119: C\D | X119: RWH Indoor | Y119: Annual | Z119: 0.2754820937 | AA119: 0.036731 | AB119: 0.3668491906 | AE119: RWH Outdoor | AF119: Annual | AG119: 0.4591368228 | AH119: 0.4 | AI119: 0.8 | AJ119: 1 | AK119: 0.6444444444 | AM119: 0.8094045385
A120: Vegetated Roof | B120: N/A | C120: Captured | D120: Annual | E120: 1 | F120: 1 | R120: 4825004 | S120: NA | T120: NA | U120: NA | V120: C\D | X120: RWH Indoor | Y120: Annual | Z120: 0.2754820937 | AA120: 0.055096 | AB120: 0.4392412086 | AE120: RWH Outdoor | AF120: Annual | AG120: 0.4591368228 | AH120: 0.5 | AI120: 0.8 | AJ120: 1 | AK120: 0.6888888889 | AM120: 0.8304363104
A121: Vegetated Roof | B121: N/A | C121: Reduced | D121: Annual | E121: 1 | F121: 0.3914167528 | R121: 5215016 | S121: NA | T121: NA | U121: NA | V121: C\D | X121: RWH Indoor | Y121: Annual | Z121: 0.2754820937 | AA121: 0.068871 | AB121: 0.4804652128 | AE121: RWH Outdoor | AF121: Annual | AG121: 0.4591368228 | AH121: 0.6 | AI121: 0.8 | AJ121: 1 | AK121: 0.7222222222 | AM121: 0.8460146227 | AN121: =AH121*43560 -> 26136
A122: Bioretention/Rain Garden | B122: A | C122: Vol | D122: 2-year 24-hour | E122: 0.02 | F122: 0.2758518519 | R122: 4302001 | S122: NA | T122: NA | U122: NA | V122: C\D | X122: RWH Indoor | Y122: Annual | Z122: 0.2754820937 | AA122: 0.091827 | AB122: 0.5369676551 | AE122: RWH Outdoor | AF122: Annual | AG122: 0.4591368228 | AH122: 0.7 | AI122: 0.8 | AJ122: 1 | AK122: 0.7555555556 | AM122: 0.8573778281
A123: Bioretention/Rain Garden | B123: A | C123: Vol | D123: 2-year 24-hour | E123: 0.04 | F123: 0.5210447761 | R123: 4303001 | S123: NA | T123: NA | U123: NA | V123: C\D | X123: RWH Indoor | Y123: Annual | Z123: 0.2754820937 | AA123: 0.137741 | AB123: 0.6181933884 | AE123: RWH Outdoor | AF123: Annual | AG123: 0.4591368228 | AH123: 0.8 | AI123: 0.8 | AJ123: 1 | AK123: 0.7777777778 | AM123: 0.8696294633
A124: Bioretention/Rain Garden | B124: A | C124: Vol | D124: 2-year 24-hour | E124: 0.06 | F124: 0.7435555556 | R124: 4349002A | S124: NA | T124: NA | U124: NA | V124: C\D | X124: RWH Indoor | Y124: Annual | Z124: 0.2754820937 | AA124: 0.183655 | AB124: 0.6731957659 | AE124: RWH Outdoor | AF124: Annual | AG124: 0.4591368228 | AH124: 0.9 | AI124: 0.8 | AJ124: 1 | AK124: 0.8 | AM124: 0.879192504
A125: Bioretention/Rain Garden | B125: A | C125: Vol | D125: 2-year 24-hour | E125: 0.08 | F125: 0.9173529412 | R125: 4349003B | S125: NA | T125: NA | U125: NA | V125: C\D | X125: RWH Indoor | Y125: Annual | Z125: 0.2754820937 | AA125: 0.275482 | AB125: 0.7474211965 | AE125: RWH Outdoor | AF125: Annual | AG125: 0.4591368228 | AH125: 1 | AI125: 0.8 | AJ125: 1 | AK125: 0.8166666667 | AM125: 0.8843377794
A126: Bioretention/Rain Garden | B126: A | C126: Vol | D126: 2-year 24-hour | E126: 0.1 | F126: 1 | R126: 4349014 | S126: NA | T126: NA | U126: NA | V126: C\D | X126: RWH Indoor | Y126: Annual | Z126: 0.2984389348 | AA126: 0.014922 | AB126: 0.2287876672 | AE126: RWH Outdoor | AF126: Annual | AG126: 0.6887052342 | AH126: 0.01 | AI126: 0.8 | AJ126: 1 | AK126: 0.1133333333 | AM126: 0.6960731276
A127: Bioretention/Rain Garden | B127: A | C127: Q | D127: 2-year 24-hour | E127: 0.02 | F127: 0.1329787234 | R127: 4377001 | S127: NA | T127: NA | U127: NA | V127: C\D | X127: RWH Indoor | Y127: Annual | Z127: 0.2984389348 | AA127: 0.019896 | AB127: 0.271845084 | AE127: RWH Outdoor | AF127: Annual | AG127: 0.6887052342 | AH127: 0.05 | AI127: 0.8 | AJ127: 1 | AK127: 0.29 | AM127: 0.7360669651
A128: Bioretention/Rain Garden | B128: A | C128: Q | D128: 2-year 24-hour | E128: 0.04 | F128: 0.3031914894 | R128: 4381004 | S128: NA | T128: NA | U128: NA | V128: C\D | X128: RWH Indoor | Y128: Annual | Z128: 0.2984389348 | AA128: 0.029844 | AB128: 0.3387368643 | AE128: RWH Outdoor | AF128: Annual | AG128: 0.6887052342 | AH128: 0.1 | AI128: 0.8 | AJ128: 1 | AK128: 0.4216666667 | AM128: 0.7649377082
A129: Bioretention/Rain Garden | B129: A | C129: Q | D129: 2-year 24-hour | E129: 0.06 | F129: 0.7446808511 | R129: 4382006 | S129: NA | T129: NA | U129: NA | V129: C\D | X129: RWH Indoor | Y129: Annual | Z129: 0.2984389348 | AA129: 0.039792 | AB129: 0.3904057644 | AE129: RWH Outdoor | AF129: Annual | AG129: 0.6887052342 | AH129: 0.2 | AI129: 0.8 | AJ129: 1 | AK129: 0.5611111111 | AM129: 0.8064040822
A130: Bioretention/Rain Garden | B130: A | C130: Q | D130: 2-year 24-hour | E130: 0.08 | F130: 0.9521276596 | R130: 4502A002 | S130: NA | T130: NA | U130: NA | V130: B | X130: RWH Indoor | Y130: Annual | Z130: 0.2984389348 | AA130: 0.059688 | AB130: 0.4654645644 | AE130: RWH Outdoor | AF130: Annual | AG130: 0.6887052342 | AH130: 0.3 | AI130: 0.8 | AJ130: 1 | AK130: 0.65 | AM130: 0.8395143521
A131: Bioretention/Rain Garden | B131: A | C131: Q | D131: 2-year 24-hour | E131: 0.1 | F131: 1 | R131: 4572001 | S131: NA | T131: NA | U131: NA | X131: RWH Indoor | Y131: Annual | Z131: 0.2984389348 | AA131: 0.07461 | AB131: 0.5081330754 | AE131: RWH Outdoor | AF131: Annual | AG131: 0.6887052342 | AH131: 0.4 | AI131: 0.8 | AJ131: 1 | AK131: 0.7111111111 | AM131: 0.8588615389
A132: Bioretention/Rain Garden | B132: B | C132: Vol | D132: 2-year 24-hour | E132: 0.02 | F132: 0.1816296296 | R132: 4572002 | S132: NA | T132: NA | U132: NA | X132: RWH Indoor | Y132: Annual | Z132: 0.2984389348 | AA132: 0.09948 | AB132: 0.5664689303 | AE132: RWH Outdoor | AF132: Annual | AG132: 0.6887052342 | AH132: 0.5 | AI132: 0.8 | AJ132: 1 | AK132: 0.75 | AM132: 0.8733651114
A133: Bioretention/Rain Garden | B133: B | C133: Vol | D133: 2-year 24-hour | E133: 0.04 | F133: 0.3511940299 | R133: 4572003 | S133: NA | T133: NA | U133: NA | X133: RWH Indoor | Y133: Annual | Z133: 0.2984389348 | AA133: 0.149219 | AB133: 0.6485835909 | AE133: RWH Outdoor | AF133: Annual | AG133: 0.6887052342 | AH133: 0.6 | AI133: 0.8 | AJ133: 1 | AK133: 0.7888888889 | AM133: 0.8893809015
A134: Bioretention/Rain Garden | B134: B | C134: Vol | D134: 2-year 24-hour | E134: 0.06 | F134: 0.5248888889 | R134: 4572004 | S134: NA | T134: NA | U134: NA | X134: RWH Indoor | Y134: Annual | Z134: 0.2984389348 | AA134: 0.198959 | AB134: 0.7034192945 | AE134: RWH Outdoor | AF134: Annual | AG134: 0.6887052342 | AH134: 0.7 | AI134: 0.8 | AJ134: 1 | AK134: 0.8166666667 | AM134: 0.9019899226
A135: Bioretention/Rain Garden | B135: B | C135: Vol | D135: 2-year 24-hour | E135: 0.08 | F135: 0.69 | R135: 4572005 | S135: NA | T135: NA | U135: NA | X135: RWH Indoor | Y135: Annual | Z135: 0.2984389348 | AA135: 0.298439 | AB135: 0.7763668921 | AE135: RWH Outdoor | AF135: Annual | AG135: 0.6887052342 | AH135: 0.8 | AI135: 0.8 | AJ135: 1 | AK135: 0.8388888889 | AM135: 0.913401837
A136: Bioretention/Rain Garden | B136: B | C136: Vol | D136: 2-year 24-hour | E136: 0.1 | F136: 0.8437037037 | R136: 4572006 | S136: NA | T136: NA | U136: NA | X136: RWH Indoor | Y136: Annual | Z136: 0.3213957759 | AA136: 0.01607 | AB136: 0.2438994316 | AE136: RWH Outdoor | AF136: Annual | AG136: 0.6887052342 | AH136: 0.9 | AI136: 0.8 | AJ136: 1 | AK136: 0.8555555556 | AM136: 0.9205613254
A137: Bioretention/Rain Garden | B137: B | C137: Q | D137: 2-year 24-hour | E137: 0.02 | F137: 0.1223404255 | R137: 4572007 | S137: NA | T137: NA | U137: NA | X137: RWH Indoor | Y137: Annual | Z137: 0.3213957759 | AA137: 0.021426 | AB137: 0.2892902825 | AE137: RWH Outdoor | AF137: Annual | AG137: 0.6887052342 | AH137: 1 | AI137: 0.8 | AJ137: 1 | AK137: 0.8722222222 | AM137: 0.9262699524
A138: Bioretention/Rain Garden | B138: B | C138: Q | D138: 2-year 24-hour | E138: 0.04 | F138: 0.2872340426 | R138: 4572008 | S138: NA | T138: NA | U138: NA | X138: RWH Indoor | Y138: Annual | Z138: 0.3213957759 | AA138: 0.03214 | AB138: 0.3594044243 | AE138: RWH Outdoor | AF138: Annual | AG138: 0.9182736455 | AH138: 0.01 | AI138: 0.8 | AJ138: 1 | AK138: 0.1272222222 | AM138: 0.7421597895
A139: Bioretention/Rain Garden | B139: B | C139: Q | D139: 2-year 24-hour | E139: 0.06 | F139: 0.5106382979 | R139: 4572009 | S139: NA | T139: NA | U139: NA | X139: RWH Indoor | Y139: Annual | Z139: 0.3213957759 | AA139: 0.042853 | AB139: 0.4131845268 | AE139: RWH Outdoor | AF139: Annual | AG139: 0.9182736455 | AH139: 0.05 | AI139: 0.8 | AJ139: 1 | AK139: 0.3066666667 | AM139: 0.7730478144
A140: Bioretention/Rain Garden | B140: B | C140: Q | D140: 2-year 24-hour | E140: 0.08 | F140: 0.8670212766 | R140: 4572011 | S140: NA | T140: NA | U140: NA | X140: RWH Indoor | Y140: Annual | Z140: 0.3213957759 | AA140: 0.064279 | AB140: 0.490576761 | AE140: RWH Outdoor | AF140: Annual | AG140: 0.9182736455 | AH140: 0.1 | AI140: 0.8 | AJ140: 1 | AK140: 0.4472222222 | AM140: 0.8046262178
A141: Bioretention/Rain Garden | B141: B | C141: Q | D141: 2-year 24-hour | E141: 0.1 | F141: 0.9574468085 | R141: 4572012 | S141: NA | T141: NA | U141: NA | X141: RWH Indoor | Y141: Annual | Z141: 0.3213957759 | AA141: 0.080349 | AB141: 0.5347453368 | AE141: RWH Outdoor | AF141: Annual | AG141: 0.9182736455 | AH141: 0.2 | AI141: 0.8 | AJ141: 1 | AK141: 0.6 | AM141: 0.8479238328
A142: Bioretention/Rain Garden | B142: C/D | C142: Vol | D142: 2-year 24-hour | E142: 0.02 | F142: 0.0922962963 | R142: 4572013 | S142: NA | T142: NA | U142: NA | X142: RWH Indoor | Y142: Annual | Z142: 0.3213957759 | AA142: 0.107132 | AB142: 0.5944701407 | AE142: RWH Outdoor | AF142: Annual | AG142: 0.9182736455 | AH142: 0.3 | AI142: 0.8 | AJ142: 1 | AK142: 0.6944444444 | AM142: 0.8756242553
A143: Bioretention/Rain Garden | B143: C/D | C143: Vol | D143: 2-year 24-hour | E143: 0.04 | F143: 0.1743283582 | R143: 4579001 | S143: NA | T143: NA | U143: NA | V143: C\D | X143: RWH Indoor | Y143: Annual | Z143: 0.3213957759 | AA143: 0.160698 | AB143: 0.676918149 | AE143: RWH Outdoor | AF143: Annual | AG143: 0.9182736455 | AH143: 0.4 | AI143: 0.8 | AJ143: 1 | AK143: 0.75 | AM143: 0.8959729645
A144: Bioretention/Rain Garden | B144: C/D | C144: Vol | D144: 2-year 24-hour | E144: 0.06 | F144: 0.2666666667 | R144: 4579001A | S144: NA | T144: NA | U144: NA | V144: C\D | X144: RWH Indoor | Y144: Annual | Z144: 0.3213957759 | AA144: 0.214264 | AB144: 0.7319760844 | AE144: RWH Outdoor | AF144: Annual | AG144: 0.9182736455 | AH144: 0.5 | AI144: 0.8 | AJ144: 1 | AK144: 0.7944444444 | AM144: 0.9103055
A145: Bioretention/Rain Garden | B145: C/D | C145: Vol | D145: 2-year 24-hour | E145: 0.08 | F145: 0.3526470588 | R145: 4586001 | S145: NA | T145: NA | U145: NA | V145: C\D | X145: RWH Indoor | Y145: Annual | Z145: 0.3213957759 | AA145: 0.321396 | AB145: 0.8019235524 | AE145: RWH Outdoor | AF145: Annual | AG145: 0.9182736455 | AH145: 0.6 | AI145: 0.8 | AJ145: 1 | AK145: 0.8277777778 | AM145: 0.9207583863
A146: Bioretention/Rain Garden | B146: C/D | C146: Vol | D146: 2-year 24-hour | E146: 0.1 | F146: 0.4285185185 | R146: 4586002 | S146: NA | T146: NA | U146: NA | V146: C\D | X146: RWH Indoor | Y146: Annual | Z146: 0.3443526171 | AA146: 0.017218 | AB146: 0.2587334061 | AE146: RWH Outdoor | AF146: Annual | AG146: 0.9182736455 | AH146: 0.7 | AI146: 0.8 | AJ146: 1 | AK146: 0.8555555556 | AM146: 0.9295000567
A147: Bioretention/Rain Garden | B147: C/D | C147: Q | D147: 2-year 24-hour | E147: 0.02 | F147: 0.2712765957 | R147: 4586003 | S147: NA | T147: NA | U147: NA | V147: C\D | X147: RWH Indoor | Y147: Annual | Z147: 0.3443526171 | AA147: 0.022957 | AB147: 0.3063465753 | AE147: RWH Outdoor | AF147: Annual | AG147: 0.9182736455 | AH147: 0.8 | AI147: 0.8 | AJ147: 1 | AK147: 0.8722222222 | AM147: 0.9390295253
A148: Bioretention/Rain Garden | B148: C/D | C148: Q | D148: 2-year 24-hour | E148: 0.04 | F148: 0.3617021277 | R148: 4586004 | S148: NA | T148: NA | U148: NA | V148: C\D | X148: RWH Indoor | Y148: Annual | Z148: 0.3443526171 | AA148: 0.034435 | AB148: 0.3796275207 | AE148: RWH Outdoor | AF148: Annual | AG148: 0.9182736455 | AH148: 0.9 | AI148: 0.8 | AJ148: 1 | AK148: 0.8888888889 | AM148: 0.9443272246
A149: Bioretention/Rain Garden | B149: C/D | C149: Q | D149: 2-year 24-hour | E149: 0.06 | F149: 0.5638297872 | R149: 4586005 | S149: NA | T149: NA | U149: NA | V149: C\D | X149: RWH Indoor | Y149: Annual | Z149: 0.3443526171 | AA149: 0.045914 | AB149: 0.4352410357 | AE149: RWH Outdoor | AF149: Annual | AG149: 0.9182736455 | AH149: 1 | AI149: 0.8 | AJ149: 1 | AK149: 0.9 | AM149: 0.9488804232
A150: Bioretention/Rain Garden | B150: C/D | C150: Q | D150: 2-year 24-hour | E150: 0.08 | F150: 0.8244680851 | R150: 4586006 | S150: NA | T150: NA | U150: NA | V150: C\D | X150: RWH Indoor | Y150: Annual | Z150: 0.3443526171 | AA150: 0.068871 | AB150: 0.5146889143 | AE150: RWH Outdoor | AF150: Annual | AG150: 1.147842057 | AH150: 0.01 | AI150: 0.8 | AJ150: 1 | AK150: 0.14 | AM150: 0.782009916
A151: Bioretention/Rain Garden | B151: C/D | C151: Q | D151: 2-year 24-hour | E151: 0.1 | F151: 0.9255319149 | R151: 4586007 | S151: NA | T151: NA | U151: NA | V151: C\D | X151: RWH Indoor | Y151: Annual | Z151: 0.3443526171 | AA151: 0.086088 | AB151: 0.5603019971 | AE151: RWH Outdoor | AF151: Annual | AG151: 1.147842057 | AH151: 0.05 | AI151: 0.8 | AJ151: 1 | AK151: 0.3216666667 | AM151: 0.8054325644
A152: Bioretention/Rain Garden | B152: Lined | C152: Vol | D152: 2-year 24-hour | E152: 0.02 | F152: 0.04 | R152: 4586008 | S152: NA | T152: NA | U152: NA | V152: C\D | X152: RWH Indoor | Y152: Annual | Z152: 0.3443526171 | AA152: 0.114784 | AB152: 0.6209157283 | AE152: RWH Outdoor | AF152: Annual | AG152: 1.147842057 | AH152: 0.1 | AI152: 0.8 | AJ152: 1 | AK152: 0.4655555556 | AM152: 0.8342305942
A153: Bioretention/Rain Garden | B153: Lined | C153: Vol | D153: 2-year 24-hour | E153: 0.04 | F153: 0.08 | R153: 4586009 | S153: NA | T153: NA | U153: NA | V153: C\D | X153: RWH Indoor | Y153: Annual | Z153: 0.3443526171 | AA153: 0.172176 | AB153: 0.7038637582 | AE153: RWH Outdoor | AF153: Annual | AG153: 1.147842057 | AH153: 0.2 | AI153: 0.8 | AJ153: 1 | AK153: 0.6277777778 | AM153: 0.8771726402
A154: Bioretention/Rain Garden | B154: Lined | C154: Vol | D154: 2-year 24-hour | E154: 0.06 | F154: 0.12 | R154: 4586011 | S154: NA | T154: NA | U154: NA | V154: C\D | X154: RWH Indoor | Y154: Annual | Z154: 0.3443526171 | AA154: 0.229568 | AB154: 0.75847723 | AE154: RWH Outdoor | AF154: Annual | AG154: 1.147842057 | AH154: 0.3 | AI154: 0.8 | AJ154: 1 | AK154: 0.7222222222 | AM154: 0.9002379301
A155: Bioretention/Rain Garden | B155: Lined | C155: Vol | D155: 2-year 24-hour | E155: 0.08 | F155: 0.16 | R155: 4586012 | S155: NA | T155: NA | U155: NA | V155: C\D | X155: RWH Indoor | Y155: Annual | Z155: 0.3443526171 | AA155: 0.344353 | AB155: 0.8237578295 | AE155: RWH Outdoor | AF155: Annual | AG155: 1.147842057 | AH155: 0.4 | AI155: 0.8 | AJ155: 1 | AK155: 0.7833333333 | AM155: 0.9196595835
A156: Bioretention/Rain Garden | B156: Lined | C156: Vol | D156: 2-year 24-hour | E156: 0.1 | F156: 0.2 | R156: 4586013 | S156: NA | T156: NA | U156: NA | V156: C\D | X156: RWH Indoor | Y156: Annual | Z156: 0.3673094582 | AA156: 0.018365 | AB156: 0.2734562647 | AE156: RWH Outdoor | AF156: Annual | AG156: 1.147842057 | AH156: 0.5 | AI156: 0.8 | AJ156: 1 | AK156: 0.8277777778 | AM156: 0.9306728062
A157: Bioretention/Rain Garden | B157: Lined | C157: Q | D157: 2-year 24-hour | E157: 0.02 | F157: 0.08 | R157: 4586014 | S157: NA | T157: NA | U157: NA | V157: C\D | X157: RWH Indoor | Y157: Annual | Z157: 0.3673094582 | AA157: 0.024487 | AB157: 0.3230139624 | AE157: RWH Outdoor | AF157: Annual | AG157: 1.147842057 | AH157: 0.6 | AI157: 0.8 | AJ157: 1 | AK157: 0.8555555556 | AM157: 0.9399224608
A158: Bioretention/Rain Garden | B158: Lined | C158: Q | D158: 2-year 24-hour | E158: 0.04 | F158: 0.17 | R158: 4587001 | S158: NA | T158: NA | U158: NA | V158: C\D | X158: RWH Indoor | Y158: Annual | Z158: 0.3673094582 | AA158: 0.036731 | AB158: 0.3992950375 | AE158: RWH Outdoor | AF158: Annual | AG158: 1.147842057 | AH158: 0.7 | AI158: 0.8 | AJ158: 1 | AK158: 0.8833333333 | AM158: 0.9506415692
A159: Bioretention/Rain Garden | B159: Lined | C159: Q | D159: 2-year 24-hour | E159: 0.06 | F159: 0.55 | R159: 4587002 | S159: NA | T159: NA | U159: NA | V159: C\D | X159: RWH Indoor | Y159: Annual | Z159: 0.3673094582 | AA159: 0.048975 | AB159: 0.4565197333 | AE159: RWH Outdoor | AF159: Annual | AG159: 1.147842057 | AH159: 0.8 | AI159: 0.8 | AJ159: 1 | AK159: 0.9 | AM159: 0.9560708635
A160: Bioretention/Rain Garden | B160: Lined | C160: Q | D160: 2-year 24-hour | E160: 0.08 | F160: 0.86 | R160: 4587003 | S160: NA | T160: NA | U160: NA | V160: C\D | X160: RWH Indoor | Y160: Annual | Z160: 0.3673094582 | AA160: 0.073462 | AB160: 0.5379121404 | AE160: RWH Outdoor | AF160: Annual | AG160: 1.147842057 | AH160: 0.9 | AI160: 0.8 | AJ160: 1 | AK160: 0.9111111111 | AM160: 0.9599656729
A161: Bioretention/Rain Garden | B161: Lined | C161: Q | D161: 2-year 24-hour | E161: 0.1 | F161: 0.94 | R161: 4587004 | S161: NA | T161: NA | U161: NA | V161: C\D | X161: RWH Indoor | Y161: Annual | Z161: 0.3673094582 | AA161: 0.091827 | AB161: 0.5846363823 | AE161: RWH Outdoor | AF161: Annual | AG161: 1.147842057 | AH161: 1 | AI161: 0.8 | AJ161: 1 | AK161: 0.9222222222 | AM161: 0.9630859177
A162: Infiltration Trench/Gallery | B162: A | C162: Vol | D162: 2-year 24-hour | E162: 0.02 | F162: 0.3222222222 | R162: 4587005 | S162: NA | T162: NA | U162: NA | V162: C\D | X162: RWH Indoor | Y162: Annual | Z162: 0.3673094582 | AA162: 0.122436 | AB162: 0.6460279249 | AE162: RWH Outdoor | AF162: Annual | AG162: 1.377410468 | AH162: 0.01 | AI162: 0.8 | AJ162: 1 | AK162: 0.1516666667 | AM162: 0.8127382647
A163: Infiltration Trench/Gallery | B163: A | C163: Vol | D163: 2-year 24-hour | E163: 0.04 | F163: 0.6358208955 | R163: 4587006 | S163: NA | T163: NA | U163: NA | V163: C\D | X163: RWH Indoor | Y163: Annual | Z163: 0.3673094582 | AA163: 0.183655 | AB163: 0.7288648388 | AE163: RWH Outdoor | AF163: Annual | AG163: 1.377410468 | AH163: 0.05 | AI163: 0.8 | AJ163: 1 | AK163: 0.335 | AM163: 0.8368728161
A164: Infiltration Trench/Gallery | B164: A | C164: Vol | D164: 2-year 24-hour | E164: 0.06 | F164: 0.9428888889 | R164: 4587007 | S164: NA | T164: NA | U164: NA | V164: C\D | X164: RWH Indoor | Y164: Annual | Z164: 0.3673094582 | AA164: 0.244873 | AB164: 0.7825338254 | AE164: RWH Outdoor | AF164: Annual | AG164: 1.377410468 | AH164: 0.1 | AI164: 0.8 | AJ164: 1 | AK164: 0.4805555556 | AM164: 0.8618643363
A165: Infiltration Trench/Gallery | B165: A | C165: Vol | D165: 2-year 24-hour | E165: 0.08 | F165: 1 | R165: 4587008 | S165: NA | T165: NA | U165: NA | V165: C\D | X165: RWH Indoor | Y165: Annual | Z165: 0.3673094582 | AA165: 0.367309 | AB165: 0.8431475565 | AE165: RWH Outdoor | AF165: Annual | AG165: 1.377410468 | AH165: 0.2 | AI165: 0.8 | AJ165: 1 | AK165: 0.65 | AM165: 0.8978983234
A166: Infiltration Trench/Gallery | B166: A | C166: Vol | D166: 2-year 24-hour | E166: 0.1 | F166: 1 | R166: 4587009 | S166: NA | T166: NA | U166: NA | V166: C\D | X166: RWH Indoor | Y166: Annual | Z166: 0.3902662994 | AA166: 0.019513 | AB166: 0.2879568915 | AE166: RWH Outdoor | AF166: Annual | AG166: 1.377410468 | AH166: 0.3 | AI166: 0.8 | AJ166: 1 | AK166: 0.75 | AM166: 0.9220460156
A167: Infiltration Trench/Gallery | B167: A | C167: Q | D167: 2-year 24-hour | E167: 0.02 | F167: 0.06914893617 | R167: 4587010 | S167: NA | T167: NA | U167: NA | V167: C\D | X167: RWH Indoor | Y167: Annual | Z167: 0.3902662994 | AA167: 0.026018 | AB167: 0.3394035598 | AE167: RWH Outdoor | AF167: Annual | AG167: 1.377410468 | AH167: 0.4 | AI167: 0.8 | AJ167: 1 | AK167: 0.8111111111 | AM167: 0.9368946514
A168: Infiltration Trench/Gallery | B168: A | C168: Q | D168: 2-year 24-hour | E168: 0.04 | F168: 0.5106382979 | R168: 4587011 | S168: NA | T168: NA | U168: NA | V168: C\D | X168: RWH Indoor | Y168: Annual | Z168: 0.3902662994 | AA168: 0.039027 | AB168: 0.4183514168 | AE168: RWH Outdoor | AF168: Annual | AG168: 1.377410468 | AH168: 0.5 | AI168: 0.8 | AJ168: 1 | AK168: 0.85 | AM168: 0.9468459401
A169: Infiltration Trench/Gallery | B169: A | C169: Q | D169: 2-year 24-hour | E169: 0.06 | F169: 0.9734042553 | R169: 4587012 | S169: NA | T169: NA | U169: NA | V169: C\D | X169: RWH Indoor | Y169: Annual | Z169: 0.3902662994 | AA169: 0.052036 | AB169: 0.4768539456 | AE169: RWH Outdoor | AF169: Annual | AG169: 1.377410468 | AH169: 0.6 | AI169: 0.8 | AJ169: 1 | AK169: 0.8777777778 | AM169: 0.9561845396
A170: Infiltration Trench/Gallery | B170: A | C170: Q | D170: 2-year 24-hour | E170: 0.08 | F170: 1 | R170: 4587013 | S170: NA | T170: NA | U170: NA | V170: C\D | X170: RWH Indoor | Y170: Annual | Z170: 0.3902662994 | AA170: 0.078053 | AB170: 0.5605242289 | AE170: RWH Outdoor | AF170: Annual | AG170: 1.377410468 | AH170: 0.7 | AI170: 0.8 | AJ170: 1 | AK170: 0.9055555556 | AM170: 0.9626838058
A171: Infiltration Trench/Gallery | B171: A | C171: Q | D171: 2-year 24-hour | E171: 0.1 | F171: 1 | R171: 4587014 | S171: NA | T171: NA | U171: NA | V171: C\D | X171: RWH Indoor | Y171: Annual | Z171: 0.3902662994 | AA171: 0.097567 | AB171: 0.6079151663 | AE171: RWH Outdoor | AF171: Annual | AG171: 1.377410468 | AH171: 0.8 | AI171: 0.8 | AJ171: 1 | AK171: 0.9222222222 | AM171: 0.9669447752
A172: Infiltration Trench/Gallery | B172: B | C172: Vol | D172: 2-year 24-hour | E172: 0.02 | F172: 0.219037037 | R172: 4587015 | S172: NA | T172: NA | U172: NA | V172: C\D | X172: RWH Indoor | Y172: Annual | Z172: 0.3902662994 | AA172: 0.130089 | AB172: 0.6696400566 | AE172: RWH Outdoor | AF172: Annual | AG172: 1.377410468 | AH172: 0.9 | AI172: 0.8 | AJ172: 1 | AK172: 0.9333333333 | AM172: 0.9693589948
A173: Infiltration Trench/Gallery | B173: B | C173: Vol | D173: 2-year 24-hour | E173: 0.04 | F173: 0.431641791 | R173: 4587016 | S173: NA | T173: NA | U173: NA | V173: C\D | X173: RWH Indoor | Y173: Annual | Z173: 0.3902662994 | AA173: 0.195133 | AB173: 0.7520880649 | AE173: RWH Outdoor | AF173: Annual | AG173: 1.377410468 | AH173: 1 | AI173: 0.8 | AJ173: 1 | AK173: 0.9388888889 | AM173: 0.9726453803
A174: Infiltration Trench/Gallery | B174: B | C174: Vol | D174: 2-year 24-hour | E174: 0.06 | F174: 0.6524444444 | R174: 4587017 | S174: NA | T174: NA | U174: NA | V174: C\D | X174: RWH Indoor | Y174: Annual | Z174: 0.3902662994 | AA174: 0.260178 | AB174: 0.8033125013 | AE174: RWH Outdoor | AF174: Annual | AG174: 1.60697888 | AH174: 0.01 | AI174: 0.8 | AJ174: 1 | AK174: 0.1580110497 | AM174: 0.8447445124
A175: Infiltration Trench/Gallery | B175: B | C175: Vol | D175: 2-year 24-hour | E175: 0.08 | F175: 0.8682352941 | R175: 4587018 | S175: NA | T175: NA | U175: NA | V175: C\D | X175: RWH Indoor | Y175: Annual | Z175: 0.3902662994 | AA175: 0.390266 | AB175: 0.8603149653 | AE175: RWH Outdoor | AF175: Annual | AG175: 1.60697888 | AH175: 0.05 | AI175: 0.8 | AJ175: 1 | AK175: 0.346961326 | AM175: 0.8661641902
A176: Infiltration Trench/Gallery | B176: B | C176: Vol | D176: 2-year 24-hour | E176: 0.1 | F176: 1 | R176: 4587019 | S176: NA | T176: NA | U176: NA | V176: C\D | X176: RWH Indoor | Y176: Annual | Z176: 0.4132231405 | AA176: 0.020661 | AB176: 0.3023464024 | AE176: RWH Outdoor | AF176: Annual | AG176: 1.60697888 | AH176: 0.1 | AI176: 0.8 | AJ176: 1 | AK176: 0.4922651934 | AM176: 0.8856931889
A177: Infiltration Trench/Gallery | B177: B | C177: Q | D177: 2-year 24-hour | E177: 0.02 | F177: 0.06382978723 | R177: 4587020 | S177: NA | T177: NA | U177: NA | V177: C\D | X177: RWH Indoor | Y177: Annual | Z177: 0.4132231405 | AA177: 0.027548 | AB177: 0.3553486934 | AE177: RWH Outdoor | AF177: Annual | AG177: 1.60697888 | AH177: 0.2 | AI177: 0.8 | AJ177: 1 | AK177: 0.6629834254 | AM177: 0.9156597882
A178: Infiltration Trench/Gallery | B178: B | C178: Q | D178: 2-year 24-hour | E178: 0.04 | F178: 0.2287234043 | R178: 4587021 | S178: NA | T178: NA | U178: NA | V178: C\D | X178: RWH Indoor | Y178: Annual | Z178: 0.4132231405 | AA178: 0.041322 | AB178: 0.4371300063 | AE178: RWH Outdoor | AF178: Annual | AG178: 1.60697888 | AH178: 0.3 | AI178: 0.8 | AJ178: 1 | AK178: 0.7624309392 | AM178: 0.9337883901
A179: Infiltration Trench/Gallery | B179: B | C179: Q | D179: 2-year 24-hour | E179: 0.06 | F179: 0.829787234 | R179: 4587022 | S179: NA | T179: NA | U179: NA | V179: C\D | X179: RWH Indoor | Y179: Annual | Z179: 0.4132231405 | AA179: 0.055096 | AB179: 0.4967992522 | AE179: RWH Outdoor | AF179: Annual | AG179: 1.60697888 | AH179: 0.4 | AI179: 0.8 | AJ179: 1 | AK179: 0.8232044199 | AM179: 0.9482974361
A180: Infiltration Trench/Gallery | B180: B | C180: Q | D180: 2-year 24-hour | E180: 0.08 | F180: 0.9680851064 | R180: 4587023 | S180: NA | T180: NA | U180: NA | V180: C\D | X180: RWH Indoor | Y180: Annual | Z180: 0.4132231405 | AA180: 0.082645 | AB180: 0.5818584844 | AE180: RWH Outdoor | AF180: Annual | AG180: 1.60697888 | AH180: 0.5 | AI180: 0.8 | AJ180: 1 | AK180: 0.8674033149 | AM180: 0.957809946
A181: Infiltration Trench/Gallery | B181: B | C181: Q | D181: 2-year 24-hour | E181: 0.1 | F181: 1 | R181: 4587024 | S181: NA | T181: NA | U181: NA | V181: C\D | X181: RWH Indoor | Y181: Annual | Z181: 0.4132231405 | AA181: 0.103306 | AB181: 0.6301939071 | AE181: RWH Outdoor | AF181: Annual | AG181: 1.60697888 | AH181: 0.6 | AI181: 0.8 | AJ181: 1 | AK181: 0.8950276243 | AM181: 0.9653508872
A182: Perm Pavement | B182: A | C182: Vol | D182: 2-year 24-hour | E182: 0.25 | F182: 1 | R182: 4596001 | S182: NA | T182: NA | U182: NA | V182: C\D | X182: RWH Indoor | Y182: Annual | Z182: 0.4132231405 | AA182: 0.137741 | AB182: 0.6920299133 | AE182: RWH Outdoor | AF182: Annual | AG182: 1.60697888 | AH182: 0.7 | AI182: 0.8 | AJ182: 1 | AK182: 0.9171270718 | AM182: 0.9708531458
A183: Perm Pavement | B183: A | C183: Q | D183: 2-year 24-hour | E183: 0.25 | F183: 1 | R183: 4596002 | S183: NA | T183: NA | U183: NA | V183: C\D | X183: RWH Indoor | Y183: Annual | Z183: 0.4132231405 | AA183: 0.206612 | AB183: 0.7734778784 | AE183: RWH Outdoor | AF183: Annual | AG183: 1.60697888 | AH183: 0.8 | AI183: 0.8 | AJ183: 1 | AK183: 0.9281767956 | AM183: 0.9756118003
A184: Perm Pavement | B184: B | C184: Vol | D184: 2-year 24-hour | E184: 0.25 | F184: 1 | R184: 4596003 | S184: NA | T184: NA | U184: NA | V184: C\D | X184: RWH Indoor | Y184: Annual | Z184: 0.4132231405 | AA184: 0.275482 | AB184: 0.8217577431 | AE184: RWH Outdoor | AF184: Annual | AG184: 1.60697888 | AH184: 0.9 | AI184: 0.8 | AJ184: 1 | AK184: 0.9392265193 | AM184: 0.9781099673
A185: Perm Pavement | B185: B | C185: Q | D185: 2-year 24-hour | E185: 0.25 | F185: 1 | R185: 4596015 | S185: NA | T185: NA | U185: NA | V185: C\D | X185: RWH Indoor | Y185: Annual | Z185: 0.4132231405 | AA185: 0.413223 | AB185: 0.8754267296 | AE185: RWH Outdoor | AF185: Annual | AG185: 1.60697888 | AH185: 1 | AI185: 0.8 | AJ185: 1 | AK185: 0.9447513812 | AM185: 0.9805522212
A186: Perm Pavement | B186: C/D | C186: Vol | D186: 2-year 24-hour | E186: 0.25 | F186: 0.7669104205 | R186: 4596016 | S186: NA | T186: NA | U186: NA | V186: C\D | X186: RWH Indoor | Y186: Annual | Z186: 0.4361799816 | AA186: 0.021809 | AB186: 0.3161247757 | AE186: RWH Outdoor | AF186: Annual | AG186: 1.836547291 | AH186: 0.01 | AI186: 0.8 | AJ186: 1 | AK186: 0.1607734807 | AM186: 0.8637682477
A187: Perm Pavement | B187: C/D | C187: Q | D187: 2-year 24-hour | E187: 0.25 | F187: 0.9734042553 | R187: 4596017 | S187: NA | T187: NA | U187: NA | V187: C\D | X187: RWH Indoor | Y187: Annual | Z187: 0.4361799816 | AA187: 0.029079 | AB187: 0.3711827112 | AE187: RWH Outdoor | AF187: Annual | AG187: 1.836547291 | AH187: 0.05 | AI187: 0.8 | AJ187: 1 | AK187: 0.3602209945 | AM187: 0.8835211353
A188: Perm Pavement | B188: Lined | C188: Vol | D188: 2-year 24-hour | E188: 0.25 | F188: 0 | R188: 4596018 | S188: NA | T188: NA | U188: NA | V188: C\D | X188: RWH Indoor | Y188: Annual | Z188: 0.4361799816 | AA188: 0.043618 | AB188: 0.4554085741 | AE188: RWH Outdoor | AF188: Annual | AG188: 1.836547291 | AH188: 0.1 | AI188: 0.8 | AJ188: 1 | AK188: 0.5066298343 | AM188: 0.8988192012
A189: Perm Pavement | B189: Lined | C189: Q | D189: 2-year 24-hour | E189: 0.25 | F189: 0.96 | R189: 4596019 | S189: NA | T189: NA | U189: NA | V189: C\D | X189: RWH Indoor | Y189: Annual | Z189: 0.4361799816 | AA189: 0.058157 | AB189: 0.5160223053 | AE189: RWH Outdoor | AF189: Annual | AG189: 1.836547291 | AH189: 0.2 | AI189: 0.8 | AJ189: 1 | AK189: 0.679558011 | AM189: 0.9269942063
A190: Perm Pavement | B190: A | C190: Vol | D190: 2-year 24-hour | E190: 1 | F190: 1 | R190: 4596020 | S190: NA | T190: NA | U190: NA | V190: C\D | X190: RWH Indoor | Y190: Annual | Z190: 0.4361799816 | AA190: 0.087236 | AB190: 0.6025260445 | AE190: RWH Outdoor | AF190: Annual | AG190: 1.836547291 | AH190: 0.3 | AI190: 0.8 | AJ190: 1 | AK190: 0.7790055249 | AM190: 0.9463251673
A191: Perm Pavement | B191: A | C191: Q | D191: 2-year 24-hour | E191: 1 | F191: 1 | R191: 4596021 | S191: NA | T191: NA | U191: NA | V191: C\D | X191: RWH Indoor | Y191: Annual | Z191: 0.4361799816 | AA191: 0.109045 | AB191: 0.6516948365 | AE191: RWH Outdoor | AF191: Annual | AG191: 1.836547291 | AH191: 0.4 | AI191: 0.8 | AJ191: 1 | AK191: 0.8397790055 | AM191: 0.9595557932
A192: Perm Pavement | B192: B | C192: Vol | D192: 2-year 24-hour | E192: 1 | F192: 1 | R192: 4596022 | S192: NA | T192: NA | U192: NA | V192: C\D | X192: RWH Indoor | Y192: Annual | Z192: 0.4361799816 | AA192: 0.145393 | AB192: 0.7133641688 | AE192: RWH Outdoor | AF192: Annual | AG192: 1.836547291 | AH192: 0.5 | AI192: 0.8 | AJ192: 1 | AK192: 0.8784530387 | AM192: 0.9686493004
A193: Perm Pavement | B193: B | C193: Q | D193: 2-year 24-hour | E193: 1 | F193: 1 | R193: 4596023 | S193: NA | T193: NA | U193: NA | V193: C\D | X193: RWH Indoor | Y193: Annual | Z193: 0.4361799816 | AA193: 0.21809 | AB193: 0.7928676054 | AE193: RWH Outdoor | AF193: Annual | AG193: 1.836547291 | AH193: 0.6 | AI193: 0.8 | AJ193: 1 | AK193: 0.9060773481 | AM193: 0.9754159459
A194: Perm Pavement | B194: C/D | C194: Vol | D194: 2-year 24-hour | E194: 1 | F194: 1 | R194: 4596024 | S194: NA | T194: NA | U194: NA | V194: C\D | X194: RWH Indoor | Y194: Annual | Z194: 0.4361799816 | AA194: 0.290787 | AB194: 0.8385918041 | AE194: RWH Outdoor | AF194: Annual | AG194: 1.836547291 | AH194: 0.7 | AI194: 0.8 | AJ194: 1 | AK194: 0.9281767956 | AM194: 0.9798615826
A195: Perm Pavement | B195: C/D | C195: Q | D195: 2-year 24-hour | E195: 1 | F195: 1 | R195: 4596025 | S195: NA | T195: NA | U195: NA | V195: C\D | X195: RWH Indoor | Y195: Annual | Z195: 0.4361799816 | AA195: 0.43618 | AB195: 0.8887606393 | AE195: RWH Outdoor | AF195: Annual | AG195: 1.836547291 | AH195: 0.8 | AI195: 0.8 | AJ195: 1 | AK195: 0.9392265193 | AM195: 0.9826713654
A196: Perm Pavement | B196: Lined | C196: Vol | D196: 2-year 24-hour | E196: 1 | F196: 0 | R196: 4596026 | S196: NA | T196: NA | U196: NA | V196: C\D | X196: RWH Indoor | Y196: Annual | Z196: 0.4591368228 | AA196: 0.022957 | AB196: 0.3297920332 | AE196: RWH Outdoor | AF196: Annual | AG196: 1.836547291 | AH196: 0.9 | AI196: 0.8 | AJ196: 1 | AK196: 0.9502762431 | AM196: 0.9848196087
A197: Perm Pavement | B197: Lined | C197: Q | D197: 2-year 24-hour | E197: 1 | F197: 1 | R197: 4597001 | S197: NA | T197: NA | U197: NA | V197: C\D | X197: RWH Indoor | Y197: Annual | Z197: 0.4591368228 | AA197: 0.030609 | AB197: 0.3866833812 | AE197: RWH Outdoor | AF197: Annual | AG197: 1.836547291 | AH197: 1 | AI197: 0.8 | AJ197: 1 | AK197: 0.955801105 | AM197: 0.9854260442
A198: Rainwater Harvesting Indoor | B198: N/A | C198: Vol | D198: 2-year 24-hour | E198: 0.125 | F198: 0.11 | R198: 4597010 | S198: NA | T198: NA | U198: NA | V198: C\D | X198: RWH Indoor | Y198: Annual | Z198: 0.4591368228 | AA198: 0.045914 | AB198: 0.4727982147 | AE198: RWH Outdoor | AF198: Annual | AG198: 2.066115702 | AH198: 0.01 | AI198: 0.8 | AJ198: 1 | AK198: 0.1624309392 | AM198: 0.8777921075
A199: Rainwater Harvesting Indoor | B199: N/A | C199: Vol | D199: 2-year 24-hour | E199: 0.25 | F199: 0.16 | R199: 4597011 | S199: NA | T199: NA | U199: NA | V199: C\D | X199: RWH Indoor | Y199: Annual | Z199: 0.4591368228 | AA199: 0.061218 | AB199: 0.5348008948 | AE199: RWH Outdoor | AF199: Annual | AG199: 2.066115702 | AH199: 0.05 | AI199: 0.8 | AJ199: 1 | AK199: 0.373480663 | AM199: 0.8961818009
A200: Rainwater Harvesting Indoor | B200: N/A | C200: Vol | D200: 2-year 24-hour | E200: 0.375 | F200: 0.21 | R200: 4597012 | S200: NA | T200: NA | U200: NA | V200: C\D | X200: RWH Indoor | Y200: Annual | Z200: 0.4591368228 | AA200: 0.091827 | AB200: 0.622582467 | AE200: RWH Outdoor | AF200: Annual | AG200: 2.066115702 | AH200: 0.1 | AI200: 0.8 | AJ200: 1 | AK200: 0.520441989 | AM200: 0.9106328286
... 2050 more rows

Sheet #sizing (hidden)
A1: Facility Sizing Ratio to Meet Annual Runoff Capture Requirements (85% Runoff Capture, 0.75-inch Depth of Rainfall)(1)
A2: GI BMP Type | C2: Soil Type | G2: Minimum Allowable | H2: BMP name
C3: A | D3: B | E3: C/D | F3: Lined
A4: Bioretention/Rain Garden | C4: 0.04 | D4: 0.05 | E4: 4.0%(2) | F4: 0.055 | G4: 0.035 | H4: Bioretention/Rain Garden
A5: Infiltration Trench/Gallery | C5: 0.035 | D5: 0.045 | E5: N/A | F5: N/A | G5: 0.03 | H5: Infiltration Trench/Gallery
A6: Perm Pavement | C6: 0.25 | D6: 0.25 | E6: 25%(2) | F6: N/A'(3) | G6: 0.25 | H6: Perm Pavement
A7: Cistern - Indoor Reuse | C7: See Note 4 | G7: - | H7: Cistern - Indoor Reuse
A8: Cistern - Irrigation and Detention | C8: See Note 5 | G8: - | H8: Cistern - Irrigation and Detention
A9: Impervious Removal | C9: 100% (convert an existing impervious area to pervious) | G9: 1 | H9: Impervious Removal
A10: Impervious to Landscaping | C10: 50% (1:1 ratio of impervious area directed to landscape area) | G10: 0.5 | H10: Impervious to Landscaping
A11: Vegetated Roof | C11: 100% (no impervious area directed to vegetated roof) | G11: 1 | H11: Vegetated Roof
A12: Notes:
A13: 1) | B13: See "Design Guidance" section of the Performance tab for additional information and SFPUC Typical GI Details for additional guidance (sfwater.org/smr).
A15: 2) | B15: Designed with an underdrain set near the top of the gravel storage layer to maximize infiltration.
A16: 3) | B16: Lined permeable pavement is not a recommended BMP. Contact the SFPUC if guidance is needed on alternatives.
A17: 4) | B17: To achieve 85% capture, cisterns typically need at least 15,000 gallons of storage per impervious acre of drainage area AND at least 4,000 gpd of reuse demand per impervious acre of drainage area.
A19: 5) | B19: To achieve 85% capture, cisterns with detention typically need at least 20,000 gallons of storage per impervious acre of drainage area. Retention storage must be 50% of total cistern volume and used to offset site irrigation demand. Detention storage volume must be designed to draw down in 24 to 48 hours using outlet control (e.g., orifice outlet).
